Beneficiary,Transaction Date,TransNo,Procurement,Purpose of Spend,Organisation,Amount
AMZNMktplace,01/10/2022,31124121,"Supplies, Services & Other Expenses",Operational Equipment Non-Consumables,Greater Manchester Combined Authority ,109.00
ANIMOTO INC,03/10/2022,31124000,"Supplies, Services & Other Expenses",Advertising,Greater Manchester Combined Authority ,39.99
HTTPS://JUMPXTREME.CO.,03/10/2022,31122095,"Supplies, Services & Other Expenses",Hospitality,Greater Manchester Combined Authority ,-11.95
TESCO STORES 6017,03/10/2022,31124025,"Supplies, Services & Other Expenses",Hospitality,Greater Manchester Combined Authority ,26.71
NCP MANCHESTER G-MEX (,05/10/2022,31123972,Transport Related Expenditure,Officers Travel & Subsistence,Greater Manchester Combined Authority ,7.45
Q PARK LEEDS ST JOHN,05/10/2022,31123939,Transport Related Expenditure,Officers Travel & Subsistence,Greater Manchester Combined Authority ,9.30
ASDA SUPERSTORE,06/10/2022,31122001,"Supplies, Services & Other Expenses",Subsistence,Greater Manchester Combined Authority ,24.34
ASDA SUPERSTORE,06/10/2022,31122065,"Supplies, Services & Other Expenses",Subsistence,Greater Manchester Combined Authority ,11.30
ASDA SUPERSTORE,06/10/2022,31122082,"Supplies, Services & Other Expenses",Subsistence,Greater Manchester Combined Authority ,15.10
ASDA SUPERSTORE,06/10/2022,31122086,"Supplies, Services & Other Expenses",Subsistence,Greater Manchester Combined Authority ,12.75
AMZNMktplace,07/10/2022,31124007,"Supplies, Services & Other Expenses",Computer Hardware,Greater Manchester Combined Authority ,33.98
BLS MONDAY.COM12017784,07/10/2022,31122009,"Supplies, Services & Other Expenses",Computer Software,Greater Manchester Combined Authority ,"2,016.00"
REDBANK SERVICE ST,07/10/2022,31119656,Transport Related Expenditure,Fuel,Greater Manchester Combined Authority ,10.00
BREWERS FAYRE40536910,08/10/2022,31115897,Transport Related Expenditure,Officers Travel & Subsistence,Greater Manchester Combined Authority ,11.28
Oldham_Council__Parkin,08/10/2022,31119617,Transport Related Expenditure,Officers Travel & Subsistence,Greater Manchester Combined Authority ,2.50
ASDA STORES 4490,10/10/2022,31124092,"Supplies, Services & Other Expenses",Subsistence,Greater Manchester Combined Authority ,34.40
CURRYS ONLINE,10/10/2022,31124063,"Supplies, Services & Other Expenses",Subsistence,Greater Manchester Combined Authority ,29.98
KFC,10/10/2022,31121863,"Supplies, Services & Other Expenses",Subsistence,Greater Manchester Combined Authority ,145.99
MCDONALDS,10/10/2022,31121849,"Supplies, Services & Other Expenses",Subsistence,Greater Manchester Combined Authority ,92.46
TESCO STORES 5731,10/10/2022,31122014,"Supplies, Services & Other Expenses",Subsistence,Greater Manchester Combined Authority ,35.91
TESCO STORES 5731,10/10/2022,31122097,"Supplies, Services & Other Expenses",Subsistence,Greater Manchester Combined Authority ,22.75
TESCO STORES 5731,10/10/2022,31122118,"Supplies, Services & Other Expenses",Subsistence,Greater Manchester Combined Authority ,55.00
MCDONALDS,11/10/2022,31108512,Indirect Employee Allowances,Other Training Expenses,Greater Manchester Combined Authority ,21.86
PREMIER INN44533700,11/10/2022,31111995,Indirect Employee Allowances,Other Training Expenses,Greater Manchester Combined Authority ,10.50
ALDI 99 773,13/10/2022,31123960,"Supplies, Services & Other Expenses",Subsistence,Greater Manchester Combined Authority ,84.92
AMZNMktplace,14/10/2022,31119497,"Supplies, Services & Other Expenses",Subsistence,Greater Manchester Combined Authority ,31.89
ASDA  STORES,14/10/2022,31117627,"Supplies, Services & Other Expenses",Subsistence,Greater Manchester Combined Authority ,10.00
ASDA  STORES,14/10/2022,31117806,"Supplies, Services & Other Expenses",Subsistence,Greater Manchester Combined Authority ,9.50
ASDA  STORES,14/10/2022,31117812,"Supplies, Services & Other Expenses",Subsistence,Greater Manchester Combined Authority ,48.82
MCDONALDS,14/10/2022,31121887,"Supplies, Services & Other Expenses",Subsistence,Greater Manchester Combined Authority ,64.39
MCDONALDS,14/10/2022,31122003,"Supplies, Services & Other Expenses",Subsistence,Greater Manchester Combined Authority ,7.96
POUNDSTRETCHER,14/10/2022,31117606,"Supplies, Services & Other Expenses",Subsistence,Greater Manchester Combined Authority ,11.49
ARGOS LTD,17/10/2022,31124029,"Supplies, Services & Other Expenses",Subsistence,Greater Manchester Combined Authority ,120.00
GO OUTDOORS,17/10/2022,31124023,"Supplies, Services & Other Expenses",Subsistence,Greater Manchester Combined Authority ,355.50
HALFORDS - 0378,17/10/2022,31124051,"Supplies, Services & Other Expenses",Subsistence,Greater Manchester Combined Authority ,18.00
PREMIER INN44521735,17/10/2022,31125867,"Supplies, Services & Other Expenses",Subsistence,Greater Manchester Combined Authority ,431.65
AMZNMktplace,18/10/2022,31125813,"Supplies, Services & Other Expenses",Stationery,Greater Manchester Combined Authority ,17.48
AMZNMKTPLACE AMAZON.CO,18/10/2022,31125983,"Supplies, Services & Other Expenses",Subsistence,Greater Manchester Combined Authority ,32.98
ARCO ASHTON UNDER LYNE,18/10/2022,31126002,Premises Related Expenditure,Waste Site Programmed,Greater Manchester Combined Authority ,64.20
BOLTON LOCK COMPANY,18/10/2022,31125810,Premises Related Expenditure,Responsive Repairs & Maintenance,Greater Manchester Combined Authority ,30.49
BRIAN S.POPE LIMITED,18/10/2022,31126084,Premises Related Expenditure,Responsive Repairs & Maintenance,Greater Manchester Combined Authority ,7.20
BROWNS BIRMINGHAM,18/10/2022,31125761,"Supplies, Services & Other Expenses",Subsistence,Greater Manchester Combined Authority ,27.78
CITY ELECTRICAL FA,18/10/2022,31125971,Premises Related Expenditure,Responsive Repairs & Maintenance,Greater Manchester Combined Authority ,42.37
HMS Host International,18/10/2022,31125759,"Supplies, Services & Other Expenses",Subsistence,Greater Manchester Combined Authority ,11.79
Letzeburger Foodtruck,18/10/2022,31125993,"Supplies, Services & Other Expenses",Subsistence,Greater Manchester Combined Authority ,19.28
M6 TOLL,18/10/2022,31125847,Transport Related Expenditure,Officers Travel & Subsistence,Greater Manchester Combined Authority ,7.60
M6 TOLL,18/10/2022,31126027,Transport Related Expenditure,Officers Travel & Subsistence,Greater Manchester Combined Authority ,7.60
M6 TOLL,18/10/2022,31126075,Transport Related Expenditure,Officers Travel & Subsistence,Greater Manchester Combined Authority ,7.30
M6 TOLL,18/10/2022,31126078,Transport Related Expenditure,Officers Travel & Subsistence,Greater Manchester Combined Authority ,7.60
NCP MANCHESTER SPINNIN,18/10/2022,31125827,Transport Related Expenditure,Officers Travel & Subsistence,Greater Manchester Combined Authority ,27.65
RUDYS BIRMINGHAM,18/10/2022,31126082,"Supplies, Services & Other Expenses",Subsistence,Greater Manchester Combined Authority ,186.45
SAIGON SARL,18/10/2022,31125946,"Supplies, Services & Other Expenses",Subsistence,Greater Manchester Combined Authority ,119.96
AVANTI ENVOY,19/10/2022,31123956,Transport Related Expenditure,Officers Travel & Subsistence,Greater Manchester Combined Authority ,25.00
Black cab 3028,19/10/2022,31121867,Transport Related Expenditure,Officers Travel & Subsistence,Greater Manchester Combined Authority ,10.00
CMT UK LTD TAXI FARE,19/10/2022,31125936,Transport Related Expenditure,Officers Travel & Subsistence,Greater Manchester Combined Authority ,10.12
DOUBLETREE HARROGATE,19/10/2022,31119702,"Supplies, Services & Other Expenses",Subsistence,Greater Manchester Combined Authority ,12.00
EB  FIRE CONFERENCE 20,19/10/2022,31126005,"Supplies, Services & Other Expenses",Events,Greater Manchester Combined Authority ,480.00
EB  LITHIUM BATTERY FI,19/10/2022,31125765,"Supplies, Services & Other Expenses",Events,Greater Manchester Combined Authority ,360.00
EB  NFCC AUTUMN CONFER,19/10/2022,31125968,"Supplies, Services & Other Expenses",Events,Greater Manchester Combined Authority ,420.00
FIREGROUND CAFE LTD,19/10/2022,31125818,"Supplies, Services & Other Expenses",Subsistence,Greater Manchester Combined Authority ,130.00
FLOWERS BY BETHANY,19/10/2022,31126049,"Supplies, Services & Other Expenses",General Office Expenses,Greater Manchester Combined Authority ,95.00
iZ  Dean gorolini,19/10/2022,31122077,Transport Related Expenditure,Officers Travel & Subsistence,Greater Manchester Combined Authority ,22.40
MY.MORRISONS.COM,19/10/2022,31125923,"Supplies, Services & Other Expenses",Subsistence,Greater Manchester Combined Authority ,12.00
NCP MANCHESTER OXFFORD,19/10/2022,31121888,Transport Related Expenditure,Officers Travel & Subsistence,Greater Manchester Combined Authority ,7.00
NCP MANCHESTER OXFFORD,19/10/2022,31121949,Transport Related Expenditure,Officers Travel & Subsistence,Greater Manchester Combined Authority ,7.50
NCP MANCHESTER OXFFORD,19/10/2022,31121982,Transport Related Expenditure,Officers Travel & Subsistence,Greater Manchester Combined Authority ,7.90
NCP MANCHESTER OXFFORD,19/10/2022,31122080,Transport Related Expenditure,Officers Travel & Subsistence,Greater Manchester Combined Authority ,11.85
PARK REGIS HOTEL,19/10/2022,31126008,"Supplies, Services & Other Expenses",Subsistence,Greater Manchester Combined Authority ,127.80
Q PARK DEANSGATE NORTH,19/10/2022,31126079,Transport Related Expenditure,Officers Travel & Subsistence,Greater Manchester Combined Authority ,5.80
Q PARK PICCADILLY PLAC,19/10/2022,31125863,Transport Related Expenditure,Officers Travel & Subsistence,Greater Manchester Combined Authority ,6.90
SumUp   Poulton cabs,19/10/2022,31123898,Transport Related Expenditure,Officers Travel & Subsistence,Greater Manchester Combined Authority ,39.70
SumUp   V taxi,19/10/2022,31121979,Transport Related Expenditure,Officers Travel & Subsistence,Greater Manchester Combined Authority ,14.50
TFL TRAVEL CH,19/10/2022,31124004,Transport Related Expenditure,Officers Travel & Subsistence,Greater Manchester Combined Authority ,5.00
THE ALAN,19/10/2022,31122020,"Supplies, Services & Other Expenses",Subsistence,Greater Manchester Combined Authority ,121.00
UBER    TRIP,19/10/2022,31125937,Transport Related Expenditure,Officers Travel & Subsistence,Greater Manchester Combined Authority ,2.00
UBER    TRIP,19/10/2022,31126070,Transport Related Expenditure,Officers Travel & Subsistence,Greater Manchester Combined Authority ,17.55
ZOOM.US 888-799-9666,19/10/2022,31125749,"Supplies, Services & Other Expenses",Telephones,Greater Manchester Combined Authority ,62.39
ZOOM.US 888-799-9666,19/10/2022,31125885,"Supplies, Services & Other Expenses",Telephones,Greater Manchester Combined Authority ,62.39
1 AND 1 IONOS LTD,20/10/2022,31125824,"Supplies, Services & Other Expenses",Computer Software,Greater Manchester Combined Authority ,15.72
1 AND 1 IONOS LTD,20/10/2022,31125943,"Supplies, Services & Other Expenses",Computer Software,Greater Manchester Combined Authority ,39.70
1 AND 1 IONOS LTD,20/10/2022,31126077,"Supplies, Services & Other Expenses",Computer Software,Greater Manchester Combined Authority ,27.60
43036330 COSTA COFFEE,20/10/2022,31123991,"Supplies, Services & Other Expenses",Subsistence,Greater Manchester Combined Authority ,45.05
Amazon.co.uk NU99M29Z5,20/10/2022,31125795,"Supplies, Services & Other Expenses",Subscriptions,Greater Manchester Combined Authority ,20.99
AMZNMktplace,20/10/2022,31125760,"Supplies, Services & Other Expenses",Subsistence,Greater Manchester Combined Authority ,94.87
AMZNMktplace,20/10/2022,31125921,"Supplies, Services & Other Expenses",Subsistence,Greater Manchester Combined Authority ,25.90
AMZNMktplace,20/10/2022,31125995,"Supplies, Services & Other Expenses",Subsistence,Greater Manchester Combined Authority ,17.00
B & Q 1229,20/10/2022,31126057,Premises Related Expenditure,Responsive Repairs & Maintenance,Greater Manchester Combined Authority ,5.00
CURRYS M/CSTR WHITE CI,20/10/2022,31108638,"Supplies, Services & Other Expenses",Stationery,Greater Manchester Combined Authority ,29.99
FACEBK G5WUJJXAK2,20/10/2022,31125969,"Supplies, Services & Other Expenses",Stationery,Greater Manchester Combined Authority ,206.59
JETTERCONVERSIONS,20/10/2022,31125752,"Supplies, Services & Other Expenses",Operational Equipment Consumables,Greater Manchester Combined Authority ,223.68
MORRISON PETROL,20/10/2022,31126065,Transport Related Expenditure,Fuel,Greater Manchester Combined Authority ,8.70
Saving Zone,20/10/2022,31124114,Premises Related Expenditure,Responsive Repairs & Maintenance,Greater Manchester Combined Authority ,7.00
Saving Zone,20/10/2022,31125976,Premises Related Expenditure,Responsive Repairs & Maintenance,Greater Manchester Combined Authority ,9.37
SCREWFIX DIR LTD,20/10/2022,31125820,Premises Related Expenditure,Responsive Repairs & Maintenance,Greater Manchester Combined Authority ,8.80
SCREWFIX DIR LTD,20/10/2022,31125972,Premises Related Expenditure,Responsive Repairs & Maintenance,Greater Manchester Combined Authority ,35.19
SP STONEWALL EQUALIT,20/10/2022,31125864,"Supplies, Services & Other Expenses",Subsistence,Greater Manchester Combined Authority ,65.55
SP THE LAMPCO,20/10/2022,31125928,Premises Related Expenditure,Responsive Repairs & Maintenance,Greater Manchester Combined Authority ,25.07
T J MORRIS LTD,20/10/2022,31125831,Premises Related Expenditure,Responsive Repairs & Maintenance,Greater Manchester Combined Authority ,20.57
T J MORRIS LTD,20/10/2022,31125945,Premises Related Expenditure,Responsive Repairs & Maintenance,Greater Manchester Combined Authority ,36.70
TESCO STORES 6670,20/10/2022,31124012,"Supplies, Services & Other Expenses",Subsistence,Greater Manchester Combined Authority ,9.30
TESCO STORES 6670,20/10/2022,31124042,"Supplies, Services & Other Expenses",Subsistence,Greater Manchester Combined Authority ,14.00
THE LEARN AND PERFOR I,20/10/2022,31125815,"Supplies, Services & Other Expenses",Subscriptions,Greater Manchester Combined Authority ,117.50
TOOLSTATION UK,20/10/2022,31126059,Premises Related Expenditure,Responsive Repairs & Maintenance,Greater Manchester Combined Authority ,57.96
Trainline.COM,20/10/2022,31125851,Transport Related Expenditure,Officers Travel & Subsistence,Greater Manchester Combined Authority ,102.86
WICKES GLOSSOP,20/10/2022,31125881,Premises Related Expenditure,Responsive Repairs & Maintenance,Greater Manchester Combined Authority ,37.21
WWW.CATERKWIK.CO.UK,20/10/2022,31125763,Premises Related Expenditure,Responsive Repairs & Maintenance,Greater Manchester Combined Authority ,29.93
WWW.SCREWFIX.COM,20/10/2022,31125797,"Supplies, Services & Other Expenses",Operational Equipment Consumables,Greater Manchester Combined Authority ,209.98
WWW.SCREWFIX.COM,20/10/2022,31125794,Premises Related Expenditure,Responsive Repairs & Maintenance,Greater Manchester Combined Authority ,25.64
WWW.SCREWFIX.COM,20/10/2022,31126040,Premises Related Expenditure,Responsive Repairs & Maintenance,Greater Manchester Combined Authority ,39.53
WWW.SCREWFIX.COM,20/10/2022,31125753,Premises Related Expenditure,Responsive Repairs & Maintenance,Greater Manchester Combined Authority ,6.38
WWW.SCREWFIX.COM,20/10/2022,31125861,Premises Related Expenditure,Responsive Repairs & Maintenance,Greater Manchester Combined Authority ,16.29
WWW.SCREWFIX.COM,20/10/2022,31125870,Premises Related Expenditure,Responsive Repairs & Maintenance,Greater Manchester Combined Authority ,6.36
WWW.SCREWFIX.COM,20/10/2022,31125927,Premises Related Expenditure,Responsive Repairs & Maintenance,Greater Manchester Combined Authority ,82.12
WWW.SCREWFIX.COM,20/10/2022,31125966,Premises Related Expenditure,Responsive Repairs & Maintenance,Greater Manchester Combined Authority ,5.49
WWW.SCREWFIX.COM,20/10/2022,31125987,Premises Related Expenditure,Responsive Repairs & Maintenance,Greater Manchester Combined Authority ,53.85
WWW.SCREWFIX.COM,20/10/2022,31125989,Premises Related Expenditure,Responsive Repairs & Maintenance,Greater Manchester Combined Authority ,27.87
WWW.SCREWFIX.COM,20/10/2022,31126003,Premises Related Expenditure,Responsive Repairs & Maintenance,Greater Manchester Combined Authority ,12.51
WWW.SCREWFIX.COM,20/10/2022,31126038,Premises Related Expenditure,Responsive Repairs & Maintenance,Greater Manchester Combined Authority ,14.29
WWW.SCREWFIX.COM,20/10/2022,31126080,Premises Related Expenditure,Responsive Repairs & Maintenance,Greater Manchester Combined Authority ,7.56
CONSERVATIVE PARTY,21/10/2022,31125801,"Supplies, Services & Other Expenses",Conference,Greater Manchester Combined Authority ,530.95
EASYJET00 000K48BN5F,21/10/2022,31125834,Transport Related Expenditure,Officers Travel & Subsistence,Greater Manchester Combined Authority ,18.49
MANCHESTER OXFORD ROAD,21/10/2022,31125925,Transport Related Expenditure,Officers Travel & Subsistence,Greater Manchester Combined Authority ,342.60
MANCHESTER OXFORD ROAD,21/10/2022,31125841,Transport Related Expenditure,Officers Travel & Subsistence,Greater Manchester Combined Authority ,369.40
NCP MANCHESTER OXFFORD,21/10/2022,31125843,Transport Related Expenditure,Officers Travel & Subsistence,Greater Manchester Combined Authority ,15.80
POST OFFICE COUNTER,21/10/2022,31126066,"Supplies, Services & Other Expenses",Postage,Greater Manchester Combined Authority ,47.50
"Subway  27998, 71 Dean",21/10/2022,31124024,"Supplies, Services & Other Expenses",Subsistence,Greater Manchester Combined Authority ,28.92
TESCO PFS 2189,21/10/2022,31126054,Indirect Employee Allowances,Training Course Fees,Greater Manchester Combined Authority ,29.00
WARRINGTON BQ CAR PARK,21/10/2022,31125892,Transport Related Expenditure,Officers Travel & Subsistence,Greater Manchester Combined Authority ,9.00
ALDI 13 773,24/10/2022,31126076,"Supplies, Services & Other Expenses",Subsistence,Greater Manchester Combined Authority ,10.87
AMZNMktplace,24/10/2022,31125789,"Supplies, Services & Other Expenses",Subsistence,Greater Manchester Combined Authority ,19.99
AMZNMktplace,24/10/2022,31126029,"Supplies, Services & Other Expenses",Subsistence,Greater Manchester Combined Authority ,83.60
BEEFEATER 40537270,24/10/2022,31125930,"Supplies, Services & Other Expenses",Subsistence,Greater Manchester Combined Authority ,254.00
BUYABATTERY CO UK,24/10/2022,31126083,Transport Related Expenditure,Repairs and Maintenance - Transport,Greater Manchester Combined Authority ,17.33
GRAFTON ST CARPARK,24/10/2022,31125887,Transport Related Expenditure,Officers Travel & Subsistence,Greater Manchester Combined Authority ,2.50
HILTON GARDEN INN,24/10/2022,31125980,"Supplies, Services & Other Expenses",Subsistence,Greater Manchester Combined Authority ,218.00
LE STROGOFF,24/10/2022,31125856,"Supplies, Services & Other Expenses",Subsistence,Greater Manchester Combined Authority ,185.58
MCDONALDS,24/10/2022,31125869,"Supplies, Services & Other Expenses",Subsistence,Greater Manchester Combined Authority ,10.78
NANDOS BIRMINGHAM NEW,24/10/2022,31125809,"Supplies, Services & Other Expenses",Subsistence,Greater Manchester Combined Authority ,154.00
Partigiano,24/10/2022,31125904,"Supplies, Services & Other Expenses",Subsistence,Greater Manchester Combined Authority ,164.16
RINGGO PARKING,24/10/2022,31125934,Transport Related Expenditure,Officers Travel & Subsistence,Greater Manchester Combined Authority ,16.91
RINGGO PARKING,24/10/2022,31125955,Transport Related Expenditure,Officers Travel & Subsistence,Greater Manchester Combined Authority ,17.01
RINGGO PARKING,24/10/2022,31126025,Transport Related Expenditure,Officers Travel & Subsistence,Greater Manchester Combined Authority ,16.41
RINGGO PARKING,24/10/2022,31125769,Transport Related Expenditure,Officers Travel & Subsistence,Greater Manchester Combined Authority ,16.91
SAINSBURY�S S/MKTS,24/10/2022,31125883,"Supplies, Services & Other Expenses",Subsistence,Greater Manchester Combined Authority ,0.90
SMBC VENUES,24/10/2022,31113575,"Supplies, Services & Other Expenses",Room Hire,Greater Manchester Combined Authority ,40.00
SNACK ANADOLU,24/10/2022,31125746,"Supplies, Services & Other Expenses",Subsistence,Greater Manchester Combined Authority ,8.97
SNACK ANADOLU,24/10/2022,31125793,"Supplies, Services & Other Expenses",Subsistence,Greater Manchester Combined Authority ,82.03
WAGAMAMA BIRMINGHAM,24/10/2022,31125917,"Supplies, Services & Other Expenses",Subsistence,Greater Manchester Combined Authority ,150.90
WWW.BIPSOLUTIONS.COM,24/10/2022,31117765,Indirect Employee Allowances,Other Training Expenses,Greater Manchester Combined Authority ,570.00
www.lsengineers.co.uk,24/10/2022,31126032,Transport Related Expenditure,Repairs and Maintenance - Transport,Greater Manchester Combined Authority ,14.93
Amazon.co.uk 7G3G41Q55,25/10/2022,31123933,"Supplies, Services & Other Expenses",Stationery,Greater Manchester Combined Authority ,41.62
Amazon Prime GB4TR2FZ5,26/10/2022,31126081,"Supplies, Services & Other Expenses",Periodicals & Magazines,Greater Manchester Combined Authority ,7.99
Amazon.co.uk T083774H5,26/10/2022,31126069,"Supplies, Services & Other Expenses",Stationery,Greater Manchester Combined Authority ,10.00
AMZNMktplace,26/10/2022,31126019,"Supplies, Services & Other Expenses",Subsistence,Greater Manchester Combined Authority ,9.98
Double Zero,26/10/2022,31112017,"Supplies, Services & Other Expenses",Subsistence,Greater Manchester Combined Authority ,22.50
AMZNMktplace,31/10/2022,31125786,"Supplies, Services & Other Expenses",Office Equipment,Greater Manchester Combined Authority ,24.87
AMZNMKTPLACE AMAZON.CO,31/10/2022,31125884,"Supplies, Services & Other Expenses",Office Equipment,Greater Manchester Combined Authority ,79.99
BOLTON LOCK COMPANY,31/10/2022,31125764,Premises Related Expenditure,Responsive Repairs & Maintenance,Greater Manchester Combined Authority ,193.15
ECCTIS LTD,31/10/2022,31125939,"Supplies, Services & Other Expenses",Professional Fees,Greater Manchester Combined Authority ,71.40
AMZ HeliguyUK,01/11/2022,31125871,"Supplies, Services & Other Expenses",Subsistence,Greater Manchester Combined Authority ,22.00
AMZNMktplace,01/11/2022,31125796,"Supplies, Services & Other Expenses",Subsistence,Greater Manchester Combined Authority ,63.76
AMZNMktplace,01/11/2022,31125814,Premises Related Expenditure,Responsive Repairs & Maintenance,Greater Manchester Combined Authority ,41.46
AMZNMktplace,01/11/2022,31125929,Premises Related Expenditure,Responsive Repairs & Maintenance,Greater Manchester Combined Authority ,70.37
AMZNMKTPLACE AMAZON.CO,01/11/2022,31125840,Premises Related Expenditure,Responsive Repairs & Maintenance,Greater Manchester Combined Authority ,11.98
DONINGTON PARK GREGGS,01/11/2022,31125978,"Supplies, Services & Other Expenses",Subsistence,Greater Manchester Combined Authority ,7.70
DONINGTON PARK N/E BK,01/11/2022,31125852,"Supplies, Services & Other Expenses",Subsistence,Greater Manchester Combined Authority ,17.42
HSE  ID-7477783,01/11/2022,31125896,"Supplies, Services & Other Expenses",Stationery,Greater Manchester Combined Authority ,51.00
JAMES COOKSON/STOCKPT/,01/11/2022,31125826,Premises Related Expenditure,Responsive Repairs & Maintenance,Greater Manchester Combined Authority ,9.91
JAMES COOKSON/STOCKPT/,01/11/2022,31125829,Premises Related Expenditure,Responsive Repairs & Maintenance,Greater Manchester Combined Authority ,34.45
MANCHESTER DRY,01/11/2022,31123954,"Supplies, Services & Other Expenses",Operational Equipment Consumables,Greater Manchester Combined Authority ,25.00
MANUTAN UK,01/11/2022,31126011,Premises Related Expenditure,Responsive Repairs & Maintenance,Greater Manchester Combined Authority ,479.52
SCREWFIX DIR LTD,01/11/2022,31125992,Premises Related Expenditure,Responsive Repairs & Maintenance,Greater Manchester Combined Authority ,19.99
TRAVIS PERKINS,01/11/2022,31125898,Premises Related Expenditure,Responsive Repairs & Maintenance,Greater Manchester Combined Authority ,16.03
TRAVIS PERKINS,01/11/2022,31125906,Premises Related Expenditure,Responsive Repairs & Maintenance,Greater Manchester Combined Authority ,16.16
WICKES STOCKPORT,01/11/2022,31126035,Premises Related Expenditure,Responsive Repairs & Maintenance,Greater Manchester Combined Authority ,11.50
WWW.PLANNING.CO,01/11/2022,31125963,Capital,Estates Capital Contracts,Greater Manchester Combined Authority ,148.20
WWW.SCREWFIX.COM,01/11/2022,31125751,Premises Related Expenditure,Responsive Repairs & Maintenance,Greater Manchester Combined Authority ,17.98
WWW.SCREWFIX.COM,01/11/2022,31125779,Premises Related Expenditure,Responsive Repairs & Maintenance,Greater Manchester Combined Authority ,13.63
WWW.SCREWFIX.COM,01/11/2022,31125790,Premises Related Expenditure,Responsive Repairs & Maintenance,Greater Manchester Combined Authority ,3.08
WWW.SCREWFIX.COM,01/11/2022,31125994,Premises Related Expenditure,Responsive Repairs & Maintenance,Greater Manchester Combined Authority ,19.99
WWW.SCREWFIX.COM,01/11/2022,31125997,Premises Related Expenditure,Responsive Repairs & Maintenance,Greater Manchester Combined Authority ,9.99
Amazon.co.uk AE5C14DT5,03/11/2022,31124109,"Supplies, Services & Other Expenses",Stationery,Greater Manchester Combined Authority ,15.83
AMZNMktplace,03/11/2022,31125982,"Supplies, Services & Other Expenses",Subsistence,Greater Manchester Combined Authority ,41.99
AMZNMktplace,03/11/2022,31126006,"Supplies, Services & Other Expenses",Subsistence,Greater Manchester Combined Authority ,25.86
AMZNMKTPLACE AMAZON.CO,03/11/2022,31125918,"Supplies, Services & Other Expenses",Subsistence,Greater Manchester Combined Authority ,6.98
BOOKED.COM,03/11/2022,31126067,"Supplies, Services & Other Expenses",Stationery,Greater Manchester Combined Authority ,450.00
CRATE HIRE UK LTD,03/11/2022,31125850,"Supplies, Services & Other Expenses",Postage,Greater Manchester Combined Authority ,170.40
CRATE HIRE UK LTD,03/11/2022,31125905,"Supplies, Services & Other Expenses",Postage,Greater Manchester Combined Authority ,106.50
CRATE HIRE UK LTD,03/11/2022,31125959,"Supplies, Services & Other Expenses",Postage,Greater Manchester Combined Authority ,238.56
CRATE HIRE UK LTD,03/11/2022,31126042,"Supplies, Services & Other Expenses",Postage,Greater Manchester Combined Authority ,68.16
ROYAL YACHTING ASSOC,03/11/2022,31123907,Premises Related Expenditure,Responsive Repairs & Maintenance,Greater Manchester Combined Authority ,47.00
ROYAL YACHTING ASSOC,03/11/2022,31125913,Premises Related Expenditure,Responsive Repairs & Maintenance,Greater Manchester Combined Authority ,47.00
SCREWFIX DIR LTD,03/11/2022,31121895,Premises Related Expenditure,Responsive Repairs & Maintenance,Greater Manchester Combined Authority ,-5.89
SCREWFIX DIR LTD,03/11/2022,31121901,Premises Related Expenditure,Responsive Repairs & Maintenance,Greater Manchester Combined Authority ,30.79
SCREWFIX DIR LTD,03/11/2022,31124126,Premises Related Expenditure,Responsive Repairs & Maintenance,Greater Manchester Combined Authority ,86.96
SCREWFIX DIR LTD,03/11/2022,31125811,Premises Related Expenditure,Responsive Repairs & Maintenance,Greater Manchester Combined Authority ,11.38
WWW.THEGLOWCOMPANY.CO.,03/11/2022,31125804,"Supplies, Services & Other Expenses",Subsistence,Greater Manchester Combined Authority ,246.59
Amazon.co.uk 527668ZQ5,04/11/2022,31125958,Transport Related Expenditure,Repairs and Maintenance - Transport,Greater Manchester Combined Authority ,8.48
Amazon.co.uk 8F22A06Y5,04/11/2022,31125860,Transport Related Expenditure,Repairs and Maintenance - Transport,Greater Manchester Combined Authority ,10.00
Amazon.co.uk RV49500L5,04/11/2022,31126055,Transport Related Expenditure,Repairs and Maintenance - Transport,Greater Manchester Combined Authority ,5.99
Amazon.co.uk U413848Z5,04/11/2022,31125750,Transport Related Expenditure,Repairs and Maintenance - Transport,Greater Manchester Combined Authority ,90.00
AMZNMktplace,04/11/2022,31125774,Transport Related Expenditure,Repairs and Maintenance - Transport,Greater Manchester Combined Authority ,7.99
AMZNMktplace,04/11/2022,31125792,Transport Related Expenditure,Repairs and Maintenance - Transport,Greater Manchester Combined Authority ,10.98
AMZNMktplace,04/11/2022,31125849,Transport Related Expenditure,Repairs and Maintenance - Transport,Greater Manchester Combined Authority ,35.60
AMZNMktplace,04/11/2022,31125951,Transport Related Expenditure,Repairs and Maintenance - Transport,Greater Manchester Combined Authority ,16.45
AMZNMktplace,04/11/2022,31125953,Transport Related Expenditure,Repairs and Maintenance - Transport,Greater Manchester Combined Authority ,31.00
AMZNMktplace,04/11/2022,31125967,Transport Related Expenditure,Repairs and Maintenance - Transport,Greater Manchester Combined Authority ,62.65
AMZNMktplace,04/11/2022,31126004,Transport Related Expenditure,Repairs and Maintenance - Transport,Greater Manchester Combined Authority ,70.44
AMZNMktplace,04/11/2022,31126012,Transport Related Expenditure,Repairs and Maintenance - Transport,Greater Manchester Combined Authority ,7.99
AMZNMktplace,04/11/2022,31126021,Transport Related Expenditure,Repairs and Maintenance - Transport,Greater Manchester Combined Authority ,32.48
AMZNMKTPLACE AMAZON.CO,04/11/2022,31125825,Transport Related Expenditure,Repairs and Maintenance - Transport,Greater Manchester Combined Authority ,38.21
AMZNMKTPLACE AMAZON.CO,04/11/2022,31125872,Transport Related Expenditure,Repairs and Maintenance - Transport,Greater Manchester Combined Authority ,-38.21
AMZNMKTPLACE AMAZON.CO,04/11/2022,31125990,Transport Related Expenditure,Repairs and Maintenance - Transport,Greater Manchester Combined Authority ,19.62
AMZNMKTPLACE AMAZON.CO,04/11/2022,31126072,Transport Related Expenditure,Repairs and Maintenance - Transport,Greater Manchester Combined Authority ,5.90
BEST BUILDING SUPPLIES,04/11/2022,31125806,Transport Related Expenditure,Repairs and Maintenance - Transport,Greater Manchester Combined Authority ,41.40
HTTPS://WWW.JPENNYLTD.,04/11/2022,31125950,Transport Related Expenditure,Repairs and Maintenance - Transport,Greater Manchester Combined Authority ,71.04
MERLIN DIESEL VT,04/11/2022,31125911,Transport Related Expenditure,Repairs and Maintenance - Transport,Greater Manchester Combined Authority ,691.14
PARCEL MONKEY 9163379,04/11/2022,31126086,"Supplies, Services & Other Expenses",Postage,Greater Manchester Combined Authority ,21.16
PARCEL MONKEY 9172907,04/11/2022,31125899,"Supplies, Services & Other Expenses",Postage,Greater Manchester Combined Authority ,21.16
PARCEL MONKEY 9197236,04/11/2022,31126036,"Supplies, Services & Other Expenses",Postage,Greater Manchester Combined Authority ,21.16
PAYPAL  STERLINGPOW,04/11/2022,31125880,Transport Related Expenditure,Repairs and Maintenance - Transport,Greater Manchester Combined Authority ,273.60
TURNKEY INSTRUMENTS,04/11/2022,31126043,Transport Related Expenditure,Repairs and Maintenance - Transport,Greater Manchester Combined Authority ,34.54
AMZNMktplace,05/11/2022,31125853,"Supplies, Services & Other Expenses",Subsistence,Greater Manchester Combined Authority ,24.98
AMZNMktplace,05/11/2022,31125747,"Supplies, Services & Other Expenses",Subsistence,Greater Manchester Combined Authority ,22.99
TIMPSON LTD,05/11/2022,31125828,"Supplies, Services & Other Expenses",Subsistence,Greater Manchester Combined Authority ,12.00
AMZNMKTPLACE AMAZON.CO,06/11/2022,31124019,"Supplies, Services & Other Expenses",Office Equipment,Greater Manchester Combined Authority ,74.97
AMZNMKTPLACE AMAZON.CO,06/11/2022,31123934,Premises Related Expenditure,Fixtures & Fittings,Greater Manchester Combined Authority ,69.95
AMZNMKTPLACE AMAZON.CO,06/11/2022,31123997,Premises Related Expenditure,Fixtures & Fittings,Greater Manchester Combined Authority ,99.95
H.G. Stephenson Ltd,06/11/2022,31123913,"Supplies, Services & Other Expenses",Kitchen Equipment,Greater Manchester Combined Authority ,17.99
TESCO PFS 5287,06/11/2022,31124036,"Supplies, Services & Other Expenses",Subsistence,Greater Manchester Combined Authority ,25.55
THE EUROPA HOTEL,06/11/2022,31121868,"Supplies, Services & Other Expenses",Subsistence,Greater Manchester Combined Authority ,190.00
Amazon.co.uk CX0CX1OA5,07/11/2022,31125768,Premises Related Expenditure,Responsive Repairs & Maintenance,Greater Manchester Combined Authority ,106.24
AMZNMKTPLACE AMAZON.CO,07/11/2022,31125858,Premises Related Expenditure,Responsive Repairs & Maintenance,Greater Manchester Combined Authority ,139.90
AMZNMKTPLACE AMAZON.CO,07/11/2022,31125924,Premises Related Expenditure,Responsive Repairs & Maintenance,Greater Manchester Combined Authority ,19.11
AMZNMKTPLACE AMAZON.CO,07/11/2022,31126030,Premises Related Expenditure,Responsive Repairs & Maintenance,Greater Manchester Combined Authority ,25.94
B & Q 1190,07/11/2022,31125788,Premises Related Expenditure,Responsive Repairs & Maintenance,Greater Manchester Combined Authority ,163.76
B & Q 1190,07/11/2022,31125877,Premises Related Expenditure,Responsive Repairs & Maintenance,Greater Manchester Combined Authority ,13.30
B & Q 1304,07/11/2022,31125903,Premises Related Expenditure,Responsive Repairs & Maintenance,Greater Manchester Combined Authority ,89.60
ELECTRIC CENTRE,07/11/2022,31125767,Premises Related Expenditure,Responsive Repairs & Maintenance,Greater Manchester Combined Authority ,255.54
ELECTRIC CENTRE,07/11/2022,31125988,Premises Related Expenditure,Responsive Repairs & Maintenance,Greater Manchester Combined Authority ,385.52
ELECTRIC CENTRE,07/11/2022,31125996,Premises Related Expenditure,Responsive Repairs & Maintenance,Greater Manchester Combined Authority ,65.32
ELECTRIC CENTRE,07/11/2022,31126015,Premises Related Expenditure,Responsive Repairs & Maintenance,Greater Manchester Combined Authority ,49.73
ELECTRIC CENTRE,07/11/2022,31126018,Premises Related Expenditure,Responsive Repairs & Maintenance,Greater Manchester Combined Authority ,9.54
ELECTRIC CENTRE,07/11/2022,31126026,Premises Related Expenditure,Responsive Repairs & Maintenance,Greater Manchester Combined Authority ,180.00
ELECTRIC CENTRE,07/11/2022,31126044,Premises Related Expenditure,Responsive Repairs & Maintenance,Greater Manchester Combined Authority ,211.49
ELECTRIC CENTRE,07/11/2022,31125773,Premises Related Expenditure,Responsive Repairs & Maintenance,Greater Manchester Combined Authority ,70.20
ELECTRIC CENTRE,07/11/2022,31125785,Premises Related Expenditure,Responsive Repairs & Maintenance,Greater Manchester Combined Authority ,143.98
George Hill Bolton Bol,07/11/2022,31125821,Premises Related Expenditure,Responsive Repairs & Maintenance,Greater Manchester Combined Authority ,84.48
George Hill Bolton Bol,07/11/2022,31125873,Premises Related Expenditure,Responsive Repairs & Maintenance,Greater Manchester Combined Authority ,300.32
George Hill Bolton Bol,07/11/2022,31126047,Premises Related Expenditure,Responsive Repairs & Maintenance,Greater Manchester Combined Authority ,70.32
George Hill Bolton Bol,07/11/2022,31126073,Premises Related Expenditure,Responsive Repairs & Maintenance,Greater Manchester Combined Authority ,422.90
GIBBS AND DANDY,07/11/2022,31125900,Premises Related Expenditure,Responsive Repairs & Maintenance,Greater Manchester Combined Authority ,50.04
GIBBS AND DANDY,07/11/2022,31125960,Premises Related Expenditure,Responsive Repairs & Maintenance,Greater Manchester Combined Authority ,29.52
MUR-FIX LTD,07/11/2022,31126034,Premises Related Expenditure,Responsive Repairs & Maintenance,Greater Manchester Combined Authority ,70.72
SCREWFIX DIR LTD,07/11/2022,31125755,Premises Related Expenditure,Responsive Repairs & Maintenance,Greater Manchester Combined Authority ,85.24
SCREWFIX DIR LTD,07/11/2022,31125784,Premises Related Expenditure,Responsive Repairs & Maintenance,Greater Manchester Combined Authority ,91.96
SCREWFIX DIR LTD,07/11/2022,31125948,Premises Related Expenditure,Responsive Repairs & Maintenance,Greater Manchester Combined Authority ,9.98
SCREWFIX DIR LTD,07/11/2022,31125991,Premises Related Expenditure,Responsive Repairs & Maintenance,Greater Manchester Combined Authority ,66.46
STORE FIRST,07/11/2022,31125807,Capital,Estates Capital Contracts,Greater Manchester Combined Authority ,43.43
STORE FIRST,07/11/2022,31126053,Capital,Estates Capital Contracts,Greater Manchester Combined Authority ,272.00
SWITCH ELECTRONICS LIM,07/11/2022,31125862,Premises Related Expenditure,Responsive Repairs & Maintenance,Greater Manchester Combined Authority ,18.19
TOOLSTATION LTD,07/11/2022,31125942,Premises Related Expenditure,Responsive Repairs & Maintenance,Greater Manchester Combined Authority ,94.05
TRAVIS PERKINS,07/11/2022,31126045,Premises Related Expenditure,Responsive Repairs & Maintenance,Greater Manchester Combined Authority ,26.40
WICKES CLIFTON,07/11/2022,31125822,Premises Related Expenditure,Responsive Repairs & Maintenance,Greater Manchester Combined Authority ,28.70
WICKES CLIFTON,07/11/2022,31125890,Premises Related Expenditure,Responsive Repairs & Maintenance,Greater Manchester Combined Authority ,27.70
WICKES CLIFTON,07/11/2022,31125926,Premises Related Expenditure,Responsive Repairs & Maintenance,Greater Manchester Combined Authority ,58.80
WICKES CLIFTON,07/11/2022,31126074,Premises Related Expenditure,Responsive Repairs & Maintenance,Greater Manchester Combined Authority ,9.00
WWW.SCREWFIX.COM,07/11/2022,31125766,Premises Related Expenditure,Responsive Repairs & Maintenance,Greater Manchester Combined Authority ,28.46
WWW.SCREWFIX.COM,07/11/2022,31125783,Premises Related Expenditure,Responsive Repairs & Maintenance,Greater Manchester Combined Authority ,119.99
WWW.SCREWFIX.COM,07/11/2022,31126063,Premises Related Expenditure,Responsive Repairs & Maintenance,Greater Manchester Combined Authority ,239.71
AMZNMktplace,08/11/2022,31126033,"Supplies, Services & Other Expenses",Subsistence,Greater Manchester Combined Authority ,24.99
BOWLEE GARDEN SHOP,08/11/2022,31124047,Premises Related Expenditure,Fixtures & Fittings,Greater Manchester Combined Authority ,300.00
TESCO STORES 3378,08/11/2022,31125888,"Supplies, Services & Other Expenses",Subsistence,Greater Manchester Combined Authority ,74.63
TESCO STORES 3378,08/11/2022,31125952,"Supplies, Services & Other Expenses",Subsistence,Greater Manchester Combined Authority ,12.50
TESCO STORES 3378,08/11/2022,31126046,"Supplies, Services & Other Expenses",Subsistence,Greater Manchester Combined Authority ,10.00
TESCO STORES 5731,08/11/2022,31125886,"Supplies, Services & Other Expenses",Subsistence,Greater Manchester Combined Authority ,13.50
ALDI 27 779,09/11/2022,31125838,"Supplies, Services & Other Expenses",Subsistence,Greater Manchester Combined Authority ,9.49
ASDA SUPERSTORE,09/11/2022,31124062,"Supplies, Services & Other Expenses",Food,Greater Manchester Combined Authority ,11.78
MARKS&SPENCER PLC,09/11/2022,31123950,"Supplies, Services & Other Expenses",Food,Greater Manchester Combined Authority ,18.35
Shell Lees Road,09/11/2022,31125812,"Supplies, Services & Other Expenses",Subsistence,Greater Manchester Combined Authority ,2.19
AMZNMKTPLACE AMAZON.CO,11/11/2022,31125782,"Supplies, Services & Other Expenses",Cleaning Equipment,Greater Manchester Combined Authority ,49.95
Bakehouse Born and Bre,11/11/2022,31125910,"Supplies, Services & Other Expenses",Overseas Response Team,Greater Manchester Combined Authority ,101.55
BLUEBIRD CAF},11/11/2022,31126000,"Supplies, Services & Other Expenses",Overseas Response Team,Greater Manchester Combined Authority ,11.50
MCDONALDS 1202,11/11/2022,31125854,"Supplies, Services & Other Expenses",Overseas Response Team,Greater Manchester Combined Authority ,47.73
Passion flower,11/11/2022,31125756,"Supplies, Services & Other Expenses",Subsistence,Greater Manchester Combined Authority ,25.00
The Food Hut,11/11/2022,31126071,Indirect Employee Allowances,Training Course Fees,Greater Manchester Combined Authority ,70.70
REDESDALE ARMS HOTEL,13/11/2022,31115842,"Supplies, Services & Other Expenses",Subsistence,Greater Manchester Combined Authority ,39.40
FACEBK 2FH9SHFBK2,14/11/2022,31126088,Indirect Employee Allowances,Employee Advertising,Greater Manchester Combined Authority ,200.00
FACEBK EMXAUJPAK2,14/11/2022,31125986,Indirect Employee Allowances,Employee Advertising,Greater Manchester Combined Authority ,200.00
FACEBK SARA5JKBK2,14/11/2022,31125956,Indirect Employee Allowances,Employee Advertising,Greater Manchester Combined Authority ,200.00
FACEBK VJGG3JTBK2,14/11/2022,31125908,Indirect Employee Allowances,Employee Advertising,Greater Manchester Combined Authority ,200.00
FACEBK VWGR5J3BK2,14/11/2022,31126062,Indirect Employee Allowances,Employee Advertising,Greater Manchester Combined Authority ,200.00
PLUMB HOUS LTD.,14/11/2022,31125758,Premises Related Expenditure,Responsive Repairs & Maintenance,Greater Manchester Combined Authority ,12.00
AMZNMKTPLACE AMAZON.CO,15/11/2022,31127893,Premises Related Expenditure,Responsive Repairs & Maintenance,Greater Manchester Combined Authority ,26.40
AMZNMKTPLACE AMAZON.CO,15/11/2022,31128177,Premises Related Expenditure,Responsive Repairs & Maintenance,Greater Manchester Combined Authority ,-3.60
APPLE.COM/BILL,15/11/2022,31123944,"Supplies, Services & Other Expenses",Computer Software,Greater Manchester Combined Authority ,0.79
Costco Wholesale #112,15/11/2022,31126017,"Supplies, Services & Other Expenses",Visual Aids Equipment,Greater Manchester Combined Authority ,287.98
KRYSTAL  KRYSTAL-14063,15/11/2022,31122148,"Supplies, Services & Other Expenses",Computer Software,Greater Manchester Combined Authority ,9.59
MailChimp,15/11/2022,31122098,"Supplies, Services & Other Expenses",Subscriptions,Greater Manchester Combined Authority ,81.73
NCP MANCHESTER OXFFORD,15/11/2022,31127886,Transport Related Expenditure,Officers Travel & Subsistence,Greater Manchester Combined Authority ,7.50
NCP MANCHESTER OXFFORD,15/11/2022,31128008,Transport Related Expenditure,Officers Travel & Subsistence,Greater Manchester Combined Authority ,7.50
NCP MANCHESTER OXFFORD,15/11/2022,31128073,Transport Related Expenditure,Officers Travel & Subsistence,Greater Manchester Combined Authority ,7.50
NCP MANCHESTER OXFFORD,15/11/2022,31128123,Transport Related Expenditure,Officers Travel & Subsistence,Greater Manchester Combined Authority ,7.50
SCREWFIX DIR LTD,15/11/2022,31128018,Premises Related Expenditure,Responsive Repairs & Maintenance,Greater Manchester Combined Authority ,-15.30
SCREWFIX DIR LTD,15/11/2022,31128090,Premises Related Expenditure,Responsive Repairs & Maintenance,Greater Manchester Combined Authority ,-11.94
ABARIS INTERNATIONAL L,16/11/2022,31128096,"Supplies, Services & Other Expenses",Subsistence,Greater Manchester Combined Authority ,469.44
AMZNMktplace,16/11/2022,31127931,"Supplies, Services & Other Expenses",Subsistence,Greater Manchester Combined Authority ,21.99
AMZNMktplace,16/11/2022,31128152,"Supplies, Services & Other Expenses",Subsistence,Greater Manchester Combined Authority ,13.98
AMZNMktplace,16/11/2022,31127920,"Supplies, Services & Other Expenses",Kitchen Equipment,Greater Manchester Combined Authority ,13.32
AMZNMktplace,16/11/2022,31128082,"Supplies, Services & Other Expenses",Kitchen Equipment,Greater Manchester Combined Authority ,219.98
AMZNMktplace,16/11/2022,31127915,Premises Related Expenditure,Fixtures & Fittings,Greater Manchester Combined Authority ,9.99
AMZNMKTPLACE AMAZON.CO,16/11/2022,31128120,"Supplies, Services & Other Expenses",Cleaning Equipment,Greater Manchester Combined Authority ,6.84
AMZNMKTPLACE AMAZON.CO,16/11/2022,31126058,"Supplies, Services & Other Expenses",Subsistence,Greater Manchester Combined Authority ,73.98
B & Q 1229,16/11/2022,31125808,Premises Related Expenditure,Responsive Repairs & Maintenance,Greater Manchester Combined Authority ,15.67
B & Q 1311,16/11/2022,31125816,Premises Related Expenditure,Responsive Repairs & Maintenance,Greater Manchester Combined Authority ,24.36
B & Q 1311,16/11/2022,31126016,Premises Related Expenditure,Responsive Repairs & Maintenance,Greater Manchester Combined Authority ,11.40
B&M 459 - HS MANCHESTE,16/11/2022,31113460,"Supplies, Services & Other Expenses",Subsistence,Greater Manchester Combined Authority ,52.12
B&M 459 - HS MANCHESTE,16/11/2022,31113493,"Supplies, Services & Other Expenses",Subsistence,Greater Manchester Combined Authority ,11.98
B&M 575 - CROSTONS,16/11/2022,31128192,"Supplies, Services & Other Expenses",Subsistence,Greater Manchester Combined Authority ,9.99
BP MOTO TODDINGTON STH,16/11/2022,31113461,Transport Related Expenditure,Fuel,Greater Manchester Combined Authority ,100.01
BP MOTO TODDINGTON STH,16/11/2022,31113488,Transport Related Expenditure,Fuel,Greater Manchester Combined Authority ,97.18
BP MOTO TODDINGTON STH,16/11/2022,31113539,Transport Related Expenditure,Fuel,Greater Manchester Combined Authority ,139.98
CCV KFC Venlo,16/11/2022,31113411,"Supplies, Services & Other Expenses",Subsistence,Greater Manchester Combined Authority ,14.33
CCV KFC Venlo,16/11/2022,31113446,"Supplies, Services & Other Expenses",Subsistence,Greater Manchester Combined Authority ,18.21
Dulux Decorator Centre,16/11/2022,31125844,Premises Related Expenditure,Responsive Repairs & Maintenance,Greater Manchester Combined Authority ,29.74
FACEBK  564XUF7NJ2,16/11/2022,31124005,"Supplies, Services & Other Expenses",Events,Greater Manchester Combined Authority ,213.80
FACEBK  6LE36GFNJ2,16/11/2022,31122049,"Supplies, Services & Other Expenses",Events,Greater Manchester Combined Authority ,4.42
FACEBK  6ZFYXC7NJ2,16/11/2022,31115912,"Supplies, Services & Other Expenses",Events,Greater Manchester Combined Authority ,90.00
FACEBK  93NCNFXMJ2,16/11/2022,31117739,"Supplies, Services & Other Expenses",Events,Greater Manchester Combined Authority ,13.72
FACEBK  9J49VEFMJ2,16/11/2022,31117613,"Supplies, Services & Other Expenses",Events,Greater Manchester Combined Authority ,90.00
FACEBK  FE6LWEKNJ2,16/11/2022,31119553,"Supplies, Services & Other Expenses",Events,Greater Manchester Combined Authority ,125.00
FACEBK  GRL5CFFMJ2,16/11/2022,31119688,"Supplies, Services & Other Expenses",Events,Greater Manchester Combined Authority ,125.00
FACEBK  RFMK4GFNJ2,16/11/2022,31122108,"Supplies, Services & Other Expenses",Events,Greater Manchester Combined Authority ,202.68
FACEBK  X8QJ6FBNJ2,16/11/2022,31117543,"Supplies, Services & Other Expenses",Events,Greater Manchester Combined Authority ,90.00
FACEBK  YB2DUFBNJ2,16/11/2022,31119629,"Supplies, Services & Other Expenses",Events,Greater Manchester Combined Authority ,16.19
FACEBK 4C3A8B7DU2,16/11/2022,31110920,"Supplies, Services & Other Expenses",Events,Greater Manchester Combined Authority ,40.00
FACEBK 7PAB9BPCU2,16/11/2022,31110818,"Supplies, Services & Other Expenses",Events,Greater Manchester Combined Authority ,25.00
FACEBK 8RSHDATCU2,16/11/2022,31111053,"Supplies, Services & Other Expenses",Events,Greater Manchester Combined Authority ,7.00
FACEBK 9DEUQBTDU2,16/11/2022,31111085,"Supplies, Services & Other Expenses",Events,Greater Manchester Combined Authority ,60.00
FACEBK FHD62BTCU2,16/11/2022,31110908,"Supplies, Services & Other Expenses",Events,Greater Manchester Combined Authority ,60.00
FACEBK H8VU4C3DU2,16/11/2022,31112154,"Supplies, Services & Other Expenses",Events,Greater Manchester Combined Authority ,51.94
FACEBK JKGPJAXCU2,16/11/2022,31111060,"Supplies, Services & Other Expenses",Events,Greater Manchester Combined Authority ,7.00
FACEBK PGH35BPCU2,16/11/2022,31110958,"Supplies, Services & Other Expenses",Events,Greater Manchester Combined Authority ,7.00
FACEBK VB4U4B3DU2,16/11/2022,31110919,"Supplies, Services & Other Expenses",Events,Greater Manchester Combined Authority ,7.00
FACEBK W8HZTC3DU2,16/11/2022,31113464,"Supplies, Services & Other Expenses",Events,Greater Manchester Combined Authority ,56.97
FACEBK XTK8GCFDU2,16/11/2022,31112028,"Supplies, Services & Other Expenses",Events,Greater Manchester Combined Authority ,90.00
GO OUTDOORS,16/11/2022,31113569,"Supplies, Services & Other Expenses",Subsistence,Greater Manchester Combined Authority ,18.90
MailChimp,16/11/2022,31112061,"Supplies, Services & Other Expenses",Events,Greater Manchester Combined Authority ,10.39
MailChimp,16/11/2022,31114574,"Supplies, Services & Other Expenses",Events,Greater Manchester Combined Authority ,10.25
MailChimp,16/11/2022,31115846,"Supplies, Services & Other Expenses",Events,Greater Manchester Combined Authority ,10.85
MailChimp,16/11/2022,31119481,"Supplies, Services & Other Expenses",Events,Greater Manchester Combined Authority ,11.13
MailChimp,16/11/2022,31119491,"Supplies, Services & Other Expenses",Events,Greater Manchester Combined Authority ,10.65
MailChimp,16/11/2022,31121855,"Supplies, Services & Other Expenses",Events,Greater Manchester Combined Authority ,11.01
MARKS&SPENCER PLC,16/11/2022,31128132,"Supplies, Services & Other Expenses",Subsistence,Greater Manchester Combined Authority ,69.00
MARKS&SPENCER PLC SF,16/11/2022,31128024,"Supplies, Services & Other Expenses",Subsistence,Greater Manchester Combined Authority ,22.05
MUR-FIX LTD,16/11/2022,31125787,Premises Related Expenditure,Responsive Repairs & Maintenance,Greater Manchester Combined Authority ,35.88
Northwest Hardware Lim,16/11/2022,31125975,Premises Related Expenditure,Responsive Repairs & Maintenance,Greater Manchester Combined Authority ,13.18
Northwest Hardware Lim,16/11/2022,31126028,Premises Related Expenditure,Responsive Repairs & Maintenance,Greater Manchester Combined Authority ,32.22
Northwest Hardware Lim,16/11/2022,31125778,Premises Related Expenditure,Responsive Repairs & Maintenance,Greater Manchester Combined Authority ,11.52
SCREWFIX DIR LTD,16/11/2022,31125891,Premises Related Expenditure,Responsive Repairs & Maintenance,Greater Manchester Combined Authority ,54.47
SELCO TRADING CTR,16/11/2022,31125875,Premises Related Expenditure,Responsive Repairs & Maintenance,Greater Manchester Combined Authority ,46.84
SELCO TRADING CTR,16/11/2022,31126048,Premises Related Expenditure,Responsive Repairs & Maintenance,Greater Manchester Combined Authority ,58.95
SELCO TRADING CTR,16/11/2022,31125799,Premises Related Expenditure,Responsive Repairs & Maintenance,Greater Manchester Combined Authority ,13.34
Shell 8935,16/11/2022,31113559,Transport Related Expenditure,Fuel,Greater Manchester Combined Authority ,17.67
SSP FOOD TRAVEL EXPERT,16/11/2022,31119437,"Supplies, Services & Other Expenses",Subsistence,Greater Manchester Combined Authority ,3.33
TESCO PFS 2189,16/11/2022,31128035,"Supplies, Services & Other Expenses",Subsistence,Greater Manchester Combined Authority ,4.00
TESCO STORES 5458,16/11/2022,31113588,"Supplies, Services & Other Expenses",Subsistence,Greater Manchester Combined Authority ,9.40
TESCO STORES 6646,16/11/2022,31128069,"Supplies, Services & Other Expenses",Subsistence,Greater Manchester Combined Authority ,83.66
Tweekscycles,16/11/2022,31127933,"Supplies, Services & Other Expenses",Subsistence,Greater Manchester Combined Authority ,34.93
WOLSELEY UK,16/11/2022,31125805,Premises Related Expenditure,Responsive Repairs & Maintenance,Greater Manchester Combined Authority ,20.16
ALDI 13 773,17/11/2022,31126009,"Supplies, Services & Other Expenses",Subsistence,Greater Manchester Combined Authority ,162.99
ANIMOTO INC,17/11/2022,31125878,"Supplies, Services & Other Expenses",Advertising,Greater Manchester Combined Authority ,39.99
ASDA STORES,17/11/2022,31123967,"Supplies, Services & Other Expenses",Subsistence,Greater Manchester Combined Authority ,58.47
B & Q 1229,17/11/2022,31128178,Premises Related Expenditure,Responsive Repairs & Maintenance,Greater Manchester Combined Authority ,11.24
BOLTON ROAD S/STN,17/11/2022,31126037,"Supplies, Services & Other Expenses",Subsistence,Greater Manchester Combined Authority ,7.92
CO-OP GROUP 014449,17/11/2022,31117586,"Supplies, Services & Other Expenses",Subsistence,Greater Manchester Combined Authority ,13.05
ELECTRIC CENTRE,17/11/2022,31127997,Premises Related Expenditure,Responsive Repairs & Maintenance,Greater Manchester Combined Authority ,8.34
Electricpoint,17/11/2022,31128185,Premises Related Expenditure,Responsive Repairs & Maintenance,Greater Manchester Combined Authority ,108.99
HOME BARGAINS,17/11/2022,31128061,Premises Related Expenditure,Responsive Repairs & Maintenance,Greater Manchester Combined Authority ,19.84
HOME BARGAINS,17/11/2022,31128207,Premises Related Expenditure,Responsive Repairs & Maintenance,Greater Manchester Combined Authority ,17.77
LANGDALE CO-OP,17/11/2022,31125940,"Supplies, Services & Other Expenses",Subsistence,Greater Manchester Combined Authority ,9.04
LIDL GB DARWEN,17/11/2022,31126041,"Supplies, Services & Other Expenses",Subsistence,Greater Manchester Combined Authority ,204.56
SAINSBURYS S/MKTS,17/11/2022,31126085,"Supplies, Services & Other Expenses",Subsistence,Greater Manchester Combined Authority ,14.95
Saving Zone,17/11/2022,31128080,Premises Related Expenditure,Responsive Repairs & Maintenance,Greater Manchester Combined Authority ,16.49
TESCO STORES 3202,17/11/2022,31128040,"Supplies, Services & Other Expenses",Subsistence,Greater Manchester Combined Authority ,31.25
TOOLSTATION LTD,17/11/2022,31128208,Premises Related Expenditure,Responsive Repairs & Maintenance,Greater Manchester Combined Authority ,3.39
TOOLSTATION UK,17/11/2022,31128142,Premises Related Expenditure,Responsive Repairs & Maintenance,Greater Manchester Combined Authority ,13.01
WICKES STOCKPORT,17/11/2022,31127986,Premises Related Expenditure,Responsive Repairs & Maintenance,Greater Manchester Combined Authority ,10.50
WWW.BLTDIRECT.COM,17/11/2022,31128164,Premises Related Expenditure,Responsive Repairs & Maintenance,Greater Manchester Combined Authority ,48.59
WWW.SCREWFIX.COM,17/11/2022,31127949,Premises Related Expenditure,Responsive Repairs & Maintenance,Greater Manchester Combined Authority ,8.48
WWW.SCREWFIX.COM,17/11/2022,31127975,Premises Related Expenditure,Responsive Repairs & Maintenance,Greater Manchester Combined Authority ,17.82
WWW.SCREWFIX.COM,17/11/2022,31128012,Premises Related Expenditure,Responsive Repairs & Maintenance,Greater Manchester Combined Authority ,160.04
WWW.SCREWFIX.COM,17/11/2022,31128023,Premises Related Expenditure,Responsive Repairs & Maintenance,Greater Manchester Combined Authority ,10.78
WWW.SCREWFIX.COM,17/11/2022,31128070,Premises Related Expenditure,Responsive Repairs & Maintenance,Greater Manchester Combined Authority ,8.19
WWW.SCREWFIX.COM,17/11/2022,31128076,Premises Related Expenditure,Responsive Repairs & Maintenance,Greater Manchester Combined Authority ,10.29
WWW.SCREWFIX.COM,17/11/2022,31128084,Premises Related Expenditure,Responsive Repairs & Maintenance,Greater Manchester Combined Authority ,11.94
WWW.SCREWFIX.COM,17/11/2022,31128089,Premises Related Expenditure,Responsive Repairs & Maintenance,Greater Manchester Combined Authority ,47.13
WWW.SCREWFIX.COM,17/11/2022,31128109,Premises Related Expenditure,Responsive Repairs & Maintenance,Greater Manchester Combined Authority ,46.13
WWW.SCREWFIX.COM,17/11/2022,31128182,Premises Related Expenditure,Responsive Repairs & Maintenance,Greater Manchester Combined Authority ,20.40
WWW.SCREWFIX.COM,17/11/2022,31128000,Premises Related Expenditure,Responsive Repairs & Maintenance,Greater Manchester Combined Authority ,2.99
ZTL KEYFAX MANCHESTER,17/11/2022,31128118,"Supplies, Services & Other Expenses",Subsistence,Greater Manchester Combined Authority ,23.58
1 AND 1 IONOS LTD,21/11/2022,31127894,"Supplies, Services & Other Expenses",Computer Software,Greater Manchester Combined Authority ,74.76
1 AND 1 IONOS LTD,21/11/2022,31127922,"Supplies, Services & Other Expenses",Computer Software,Greater Manchester Combined Authority ,15.72
1 AND 1 IONOS LTD,21/11/2022,31128143,"Supplies, Services & Other Expenses",Computer Software,Greater Manchester Combined Authority ,141.36
AMZNMktplace,21/11/2022,31125902,"Supplies, Services & Other Expenses",Waste Education Materials,Greater Manchester Combined Authority ,13.58
AMZNMktplace,21/11/2022,31127919,"Supplies, Services & Other Expenses",Waste Campaigns,Greater Manchester Combined Authority ,6.99
AMZNMktplace,21/11/2022,31125974,"Supplies, Services & Other Expenses",Cleaning Equipment,Greater Manchester Combined Authority ,9.99
AMZNMktplace,21/11/2022,31126056,"Supplies, Services & Other Expenses",Cleaning Equipment,Greater Manchester Combined Authority ,9.99
AMZNMktplace,21/11/2022,31128141,"Supplies, Services & Other Expenses",Cleaning Equipment,Greater Manchester Combined Authority ,9.99
AMZNMktplace,21/11/2022,31128116,"Supplies, Services & Other Expenses",Office Equipment,Greater Manchester Combined Authority ,9.99
AMZNMktplace,21/11/2022,31127907,"Supplies, Services & Other Expenses",Waste Campaigns,Greater Manchester Combined Authority ,31.18
AMZNMktplace,21/11/2022,31125938,"Supplies, Services & Other Expenses",Waste Education Materials,Greater Manchester Combined Authority ,15.91
B & Q 1279,21/11/2022,31127895,Premises Related Expenditure,Responsive Repairs & Maintenance,Greater Manchester Combined Authority ,89.30
Dulux Decorator Centre,21/11/2022,31127971,Premises Related Expenditure,Responsive Repairs & Maintenance,Greater Manchester Combined Authority ,42.18
Dulux Decorator Centre,21/11/2022,31128092,Premises Related Expenditure,Responsive Repairs & Maintenance,Greater Manchester Combined Authority ,58.87
EB  FESTIVAL OF CIRCUL,21/11/2022,31125882,Indirect Employee Allowances,Other Training Expenses,Greater Manchester Combined Authority ,102.00
ERNEST BENTLEY & SONS,21/11/2022,31128006,Premises Related Expenditure,Responsive Repairs & Maintenance,Greater Manchester Combined Authority ,17.17
FACEBK DXRZFK3BS2,21/11/2022,31125973,"Supplies, Services & Other Expenses",Waste Campaigns,Greater Manchester Combined Authority ,86.32
FACEBK ZZPHGHPRB2,21/11/2022,31125802,"Supplies, Services & Other Expenses",Digital,Greater Manchester Combined Authority ,1.94
FIX THE BOG,21/11/2022,31128058,Premises Related Expenditure,Responsive Repairs & Maintenance,Greater Manchester Combined Authority ,78.05
GOVERNMENT EVENTS,21/11/2022,31125781,"Supplies, Services & Other Expenses",Conference,Greater Manchester Combined Authority ,383.04
GOVERNMENT EVENTS,21/11/2022,31126068,"Supplies, Services & Other Expenses",Conference,Greater Manchester Combined Authority ,383.04
GRAHAM,21/11/2022,31128190,Premises Related Expenditure,Responsive Repairs & Maintenance,Greater Manchester Combined Authority ,5.79
HOLLINS BUILDING SUPPL,21/11/2022,31128056,Premises Related Expenditure,Responsive Repairs & Maintenance,Greater Manchester Combined Authority ,5.60
IOSH SERVICES LTD,21/11/2022,31128165,Indirect Employee Allowances,Devolved Training,Greater Manchester Combined Authority ,300.00
JAMES COOKSON/STOCKPT/,21/11/2022,31128115,Premises Related Expenditure,Responsive Repairs & Maintenance,Greater Manchester Combined Authority ,23.69
MailChimp,21/11/2022,31125839,"Supplies, Services & Other Expenses",Digital,Greater Manchester Combined Authority ,25.35
MailChimp,21/11/2022,31128156,"Supplies, Services & Other Expenses",Digital,Greater Manchester Combined Authority ,30.69
MailChimp,21/11/2022,31125998,"Supplies, Services & Other Expenses",Digital,Greater Manchester Combined Authority ,31.74
MUR-FIX LTD,21/11/2022,31128170,Premises Related Expenditure,Responsive Repairs & Maintenance,Greater Manchester Combined Authority ,437.87
MUR-FIX LTD,21/11/2022,31128183,Premises Related Expenditure,Responsive Repairs & Maintenance,Greater Manchester Combined Authority ,96.00
QUAYSIDE MEDIACITY CAR,21/11/2022,31128163,Transport Related Expenditure,Officers Travel & Subsistence,Greater Manchester Combined Authority ,16.00
SCREWFIX DIR LTD,21/11/2022,31128195,Premises Related Expenditure,Responsive Repairs & Maintenance,Greater Manchester Combined Authority ,10.85
SCREWFIX WIGAN SADDLE,21/11/2022,31128126,Premises Related Expenditure,Responsive Repairs & Maintenance,Greater Manchester Combined Authority ,39.98
STAX TRADE CENTRES LTD,21/11/2022,31128097,Premises Related Expenditure,Responsive Repairs & Maintenance,Greater Manchester Combined Authority ,244.26
TOOLSTATION LTD,21/11/2022,31128160,Premises Related Expenditure,Responsive Repairs & Maintenance,Greater Manchester Combined Authority ,44.85
TOOLSTATION UK,21/11/2022,31128108,Premises Related Expenditure,Responsive Repairs & Maintenance,Greater Manchester Combined Authority ,18.38
TRAVIS PERKINS,21/11/2022,31127981,Premises Related Expenditure,Responsive Repairs & Maintenance,Greater Manchester Combined Authority ,13.74
TRAVIS PERKINS,21/11/2022,31128001,Premises Related Expenditure,Responsive Repairs & Maintenance,Greater Manchester Combined Authority ,114.00
TRAVIS PERKINS,21/11/2022,31128026,Premises Related Expenditure,Responsive Repairs & Maintenance,Greater Manchester Combined Authority ,26.89
TRAVIS PERKINS,21/11/2022,31128131,Premises Related Expenditure,Responsive Repairs & Maintenance,Greater Manchester Combined Authority ,50.67
VIKING UK,21/11/2022,31128114,"Supplies, Services & Other Expenses",Stationery,Greater Manchester Combined Authority ,80.99
WM MORRISONS STORE,21/11/2022,31128054,"Supplies, Services & Other Expenses",Subsistence,Greater Manchester Combined Authority ,25.00
WWW.CATERKWIK.CO.UK,21/11/2022,31128038,Premises Related Expenditure,Responsive Repairs & Maintenance,Greater Manchester Combined Authority ,333.52
WWW.SCREWFIX.COM,21/11/2022,31127906,Premises Related Expenditure,Responsive Repairs & Maintenance,Greater Manchester Combined Authority ,29.98
WWW.SCREWFIX.COM,21/11/2022,31127937,Premises Related Expenditure,Responsive Repairs & Maintenance,Greater Manchester Combined Authority ,19.99
WWW.SCREWFIX.COM,21/11/2022,31127941,Premises Related Expenditure,Responsive Repairs & Maintenance,Greater Manchester Combined Authority ,107.49
WWW.SCREWFIX.COM,21/11/2022,31127964,Premises Related Expenditure,Responsive Repairs & Maintenance,Greater Manchester Combined Authority ,28.99
WWW.SCREWFIX.COM,21/11/2022,31128094,Premises Related Expenditure,Responsive Repairs & Maintenance,Greater Manchester Combined Authority ,13.99
WWW.SCREWFIX.COM,21/11/2022,31128102,Premises Related Expenditure,Responsive Repairs & Maintenance,Greater Manchester Combined Authority ,14.99
AEROPORT BARCELONA,22/11/2022,31128172,"Supplies, Services & Other Expenses",Subsistence,Greater Manchester Combined Authority ,11.91
ALAS HOSPITALET,22/11/2022,31127968,Transport Related Expenditure,Officers Travel & Subsistence,Greater Manchester Combined Authority ,32.04
Amazon.co.uk CD05C4RI5,22/11/2022,31127909,"Supplies, Services & Other Expenses",Stationery,Greater Manchester Combined Authority ,28.99
AMZNMktplace,22/11/2022,31128028,"Supplies, Services & Other Expenses",Subsistence,Greater Manchester Combined Authority ,10.90
AMZNMKTPLACE AMAZON.CO,22/11/2022,31128064,"Supplies, Services & Other Expenses",Subsistence,Greater Manchester Combined Authority ,21.20
AUCAT     BAR CUBELLES,22/11/2022,31127917,"Supplies, Services & Other Expenses",Subsistence,Greater Manchester Combined Authority ,3.90
AUCAT     BAR CUBELLES,22/11/2022,31128015,Transport Related Expenditure,Officers Travel & Subsistence,Greater Manchester Combined Authority ,3.92
AUCAT     BAR VALLCARC,22/11/2022,31127918,Transport Related Expenditure,Officers Travel & Subsistence,Greater Manchester Combined Authority ,6.53
AUCAT     BAR VALLCARC,22/11/2022,31128103,Transport Related Expenditure,Officers Travel & Subsistence,Greater Manchester Combined Authority ,6.56
AVANTI ENVOY,22/11/2022,31128133,Transport Related Expenditure,Officers Travel & Subsistence,Greater Manchester Combined Authority ,25.00
AVANTI ENVOY,22/11/2022,31128166,Transport Related Expenditure,Officers Travel & Subsistence,Greater Manchester Combined Authority ,25.00
BAR LA PLANA,22/11/2022,31127983,"Supplies, Services & Other Expenses",Subsistence,Greater Manchester Combined Authority ,10.38
BAR LA PLANA,22/11/2022,31128191,"Supplies, Services & Other Expenses",Subsistence,Greater Manchester Combined Authority ,1.34
BAR LESQUITX,22/11/2022,31128063,"Supplies, Services & Other Expenses",Subsistence,Greater Manchester Combined Authority ,9.80
BOOTS 2035,22/11/2022,31127955,Transport Related Expenditure,Additional Travel,Greater Manchester Combined Authority ,5.59
DHF PRODUCTS LTD,22/11/2022,31128071,Premises Related Expenditure,Responsive Repairs & Maintenance,Greater Manchester Combined Authority ,89.28
EASYJET,22/11/2022,31127900,Transport Related Expenditure,Officers Travel & Subsistence,Greater Manchester Combined Authority ,24.00
EASYJET00 000K3RMT5P,22/11/2022,31128113,Transport Related Expenditure,Officers Travel & Subsistence,Greater Manchester Combined Authority ,23.96
ENTERPRISE RENT A CAR,22/11/2022,31127899,Transport Related Expenditure,Officers Travel & Subsistence,Greater Manchester Combined Authority ,727.22
FARRE OIL,22/11/2022,31127976,Transport Related Expenditure,Officers Travel & Subsistence,Greater Manchester Combined Authority ,87.18
FAST KEY SERVICES LIMI,22/11/2022,31128066,Premises Related Expenditure,Responsive Repairs & Maintenance,Greater Manchester Combined Authority ,139.44
METROLINK TVM,22/11/2022,31127887,Transport Related Expenditure,Officers Travel & Subsistence,Greater Manchester Combined Authority ,1.40
METROLINK TVM,22/11/2022,31127903,Transport Related Expenditure,Officers Travel & Subsistence,Greater Manchester Combined Authority ,11.20
NCP LTD,22/11/2022,31128181,Transport Related Expenditure,Officers Travel & Subsistence,Greater Manchester Combined Authority ,19.95
NCP MANCHESTER OXFFORD,22/11/2022,31128209,Transport Related Expenditure,Officers Travel & Subsistence,Greater Manchester Combined Authority ,7.90
NCP MANCHESTER OXFFORD,22/11/2022,31127987,Transport Related Expenditure,Officers Travel & Subsistence,Greater Manchester Combined Authority ,7.90
PP NOELCARDWEL,22/11/2022,31128007,Transport Related Expenditure,Officers Travel & Subsistence,Greater Manchester Combined Authority ,40.48
PRESTON CAR PARK,22/11/2022,31128068,Transport Related Expenditure,Officers Travel & Subsistence,Greater Manchester Combined Authority ,12.00
REST MISSAMAROI,22/11/2022,31128002,"Supplies, Services & Other Expenses",Subsistence,Greater Manchester Combined Authority ,"2,524.55"
SHELL Edenside Garage,22/11/2022,31128030,Transport Related Expenditure,Officers Travel & Subsistence,Greater Manchester Combined Authority ,4.24
SP PREMIERFIREDOORS,22/11/2022,31128184,Premises Related Expenditure,Responsive Repairs & Maintenance,Greater Manchester Combined Authority ,470.48
STORE FIRST,22/11/2022,31127932,Capital,Estates Capital Contracts,Greater Manchester Combined Authority ,310.00
tfgm.com/charges,22/11/2022,31127930,Transport Related Expenditure,Officers Travel & Subsistence,Greater Manchester Combined Authority ,4.60
TFL TRAVEL CH,22/11/2022,31128062,Transport Related Expenditure,Officers Travel & Subsistence,Greater Manchester Combined Authority ,5.20
THE BLACK BULL HOTEL,22/11/2022,31127896,"Supplies, Services & Other Expenses",Overseas Response Team,Greater Manchester Combined Authority ,53.00
THE BLACK BULL HOTEL,22/11/2022,31128140,"Supplies, Services & Other Expenses",Overseas Response Team,Greater Manchester Combined Authority ,6.00
THE EUROPA HOTEL,22/11/2022,31128130,"Supplies, Services & Other Expenses",Subsistence,Greater Manchester Combined Authority ,18.00
THE LITTLE SHOP CAFE,22/11/2022,31128157,"Supplies, Services & Other Expenses",Overseas Response Team,Greater Manchester Combined Authority ,31.60
TIMES NEWSPAPERS LTD,22/11/2022,31128175,"Supplies, Services & Other Expenses",Periodicals & Magazines,Greater Manchester Combined Authority ,1.00
WH SMITH,22/11/2022,31128201,Transport Related Expenditure,Officers Travel & Subsistence,Greater Manchester Combined Authority ,4.99
WWW.ALPKIT.COM,22/11/2022,31127912,"Supplies, Services & Other Expenses",Overseas Response Team,Greater Manchester Combined Authority ,25.54
WWW.PLANNING.CO,22/11/2022,31127914,Capital,Estates Capital Contracts,Greater Manchester Combined Authority ,148.20
WWW.PLANNING.CO,22/11/2022,31127938,Capital,Estates Capital Contracts,Greater Manchester Combined Authority ,148.20
WWW.PLANNING.CO,22/11/2022,31127996,Capital,Estates Capital Contracts,Greater Manchester Combined Authority ,148.20
WWW.PLANNING.CO,22/11/2022,31127999,Capital,Estates Capital Contracts,Greater Manchester Combined Authority ,148.20
WWW.PLANNING.CO,22/11/2022,31128162,Capital,Estates Capital Contracts,Greater Manchester Combined Authority ,148.20
Amazon.co.uk EG7IC7PI5,23/11/2022,31126052,"Supplies, Services & Other Expenses",Stationery,Greater Manchester Combined Authority ,97.80
ARCO ASHTON UNDER LYNE,23/11/2022,31128075,"Supplies, Services & Other Expenses",Waste Protective Clothing,Greater Manchester Combined Authority ,98.70
B & Q 1279,23/11/2022,31127998,Premises Related Expenditure,Responsive Repairs & Maintenance,Greater Manchester Combined Authority ,163.36
BRIAN S.POPE LIMITED,23/11/2022,31128101,Premises Related Expenditure,Responsive Repairs & Maintenance,Greater Manchester Combined Authority ,137.26
HIGHSPEEDTRAINING.CO.U,23/11/2022,31125859,Indirect Employee Allowances,Other Training Expenses,Greater Manchester Combined Authority ,24.00
J D PIPES LTD,23/11/2022,31127929,Premises Related Expenditure,Waste Site Responsive,Greater Manchester Combined Authority ,44.87
WWW.NISBETS.COM,23/11/2022,31128144,"Supplies, Services & Other Expenses",Stationery,Greater Manchester Combined Authority ,364.65
B & Q 1229,24/11/2022,31128042,Premises Related Expenditure,Responsive Repairs & Maintenance,Greater Manchester Combined Authority ,18.36
B & Q 1311,24/11/2022,31127924,Premises Related Expenditure,Responsive Repairs & Maintenance,Greater Manchester Combined Authority ,14.22
CITY GLASS,24/11/2022,31127960,Premises Related Expenditure,Responsive Repairs & Maintenance,Greater Manchester Combined Authority ,95.93
Costco Wholesale #112,24/11/2022,31127951,"Supplies, Services & Other Expenses",Subsistence,Greater Manchester Combined Authority ,23.18
Royal Hotel,24/11/2022,31119567,"Supplies, Services & Other Expenses",Subsistence,Greater Manchester Combined Authority ,97.60
Royal Hotel,24/11/2022,31119664,"Supplies, Services & Other Expenses",Subsistence,Greater Manchester Combined Authority ,275.00
SCREWFIX DIR LTD,24/11/2022,31128010,Premises Related Expenditure,Responsive Repairs & Maintenance,Greater Manchester Combined Authority ,84.72
SCREWFIX DIR LTD,24/11/2022,31128033,Premises Related Expenditure,Responsive Repairs & Maintenance,Greater Manchester Combined Authority ,19.99
SELCO TRADING CTR,24/11/2022,31127908,Premises Related Expenditure,Responsive Repairs & Maintenance,Greater Manchester Combined Authority ,32.12
SELCO TRADING CTR,24/11/2022,31128020,Premises Related Expenditure,Responsive Repairs & Maintenance,Greater Manchester Combined Authority ,32.12
SELCO TRADING CTR,24/11/2022,31128107,Premises Related Expenditure,Responsive Repairs & Maintenance,Greater Manchester Combined Authority ,88.66
SumUp   Spraywise,24/11/2022,31125941,Transport Related Expenditure,Repairs and Maintenance - Transport,Greater Manchester Combined Authority ,350.00
UESTRA Hannoversche Ve,24/11/2022,31119637,Transport Related Expenditure,Officers Travel & Subsistence,Greater Manchester Combined Authority ,23.88
Amazon.co.uk RA43L8VX5,25/11/2022,31128060,Transport Related Expenditure,Repairs and Maintenance - Transport,Greater Manchester Combined Authority ,5.49
Amazon.co.uk UY6HL8JU5,25/11/2022,31128047,Transport Related Expenditure,Repairs and Maintenance - Transport,Greater Manchester Combined Authority ,10.74
Amazon.co.uk YB7PE7CG5,25/11/2022,31128187,Transport Related Expenditure,Repairs and Maintenance - Transport,Greater Manchester Combined Authority ,88.95
Amazon.co.uk ZK3Q849Z5,25/11/2022,31127928,Transport Related Expenditure,Repairs and Maintenance - Transport,Greater Manchester Combined Authority ,43.96
Amazon.co.uk ZT17786B5,25/11/2022,31128189,Transport Related Expenditure,Repairs and Maintenance - Transport,Greater Manchester Combined Authority ,39.80
AMZNMktplace,25/11/2022,31128186,Transport Related Expenditure,Repairs and Maintenance - Transport,Greater Manchester Combined Authority ,16.50
AMZNMktplace,25/11/2022,31127877,Transport Related Expenditure,Repairs and Maintenance - Transport,Greater Manchester Combined Authority ,8.59
AMZNMktplace,25/11/2022,31127889,Transport Related Expenditure,Repairs and Maintenance - Transport,Greater Manchester Combined Authority ,6.49
AMZNMktplace,25/11/2022,31127897,Transport Related Expenditure,Repairs and Maintenance - Transport,Greater Manchester Combined Authority ,65.66
AMZNMktplace,25/11/2022,31127944,Transport Related Expenditure,Repairs and Maintenance - Transport,Greater Manchester Combined Authority ,3.79
AMZNMktplace,25/11/2022,31128052,Transport Related Expenditure,Repairs and Maintenance - Transport,Greater Manchester Combined Authority ,23.99
AMZNMktplace,25/11/2022,31128057,Transport Related Expenditure,Repairs and Maintenance - Transport,Greater Manchester Combined Authority ,79.98
AMZNMktplace,25/11/2022,31128086,Transport Related Expenditure,Repairs and Maintenance - Transport,Greater Manchester Combined Authority ,10.79
AMZNMktplace,25/11/2022,31128112,Transport Related Expenditure,Repairs and Maintenance - Transport,Greater Manchester Combined Authority ,17.99
AMZNMktplace,25/11/2022,31128146,Transport Related Expenditure,Repairs and Maintenance - Transport,Greater Manchester Combined Authority ,36.90
AMZNMKTPLACE AMAZON.CO,25/11/2022,31128149,Transport Related Expenditure,Repairs and Maintenance - Transport,Greater Manchester Combined Authority ,2.98
AMZNMKTPLACE AMAZON.CO,25/11/2022,31127925,Transport Related Expenditure,Repairs and Maintenance - Transport,Greater Manchester Combined Authority ,6.05
AMZNMKTPLACE AMAZON.CO,25/11/2022,31127978,Transport Related Expenditure,Repairs and Maintenance - Transport,Greater Manchester Combined Authority ,6.36
AMZNMKTPLACE AMAZON.CO,25/11/2022,31128055,Transport Related Expenditure,Repairs and Maintenance - Transport,Greater Manchester Combined Authority ,15.99
AMZNMKTPLACE AMAZON.CO,25/11/2022,31128077,Transport Related Expenditure,Repairs and Maintenance - Transport,Greater Manchester Combined Authority ,12.53
AMZNMKTPLACE AMAZON.CO,25/11/2022,31128135,Transport Related Expenditure,Repairs and Maintenance - Transport,Greater Manchester Combined Authority ,16.45
BUYABATTERY CO UK,25/11/2022,31128014,Transport Related Expenditure,Repairs and Maintenance - Transport,Greater Manchester Combined Authority ,8.25
DELTA RUBBER,25/11/2022,31128119,Transport Related Expenditure,Repairs and Maintenance - Transport,Greater Manchester Combined Authority ,37.10
PARCEL MONKEY,25/11/2022,31128034,"Supplies, Services & Other Expenses",Postage,Greater Manchester Combined Authority ,21.16
PAYPAL  STERLINGPOW,25/11/2022,31127991,Transport Related Expenditure,Repairs and Maintenance - Transport,Greater Manchester Combined Authority ,207.60
TESCO STORES 2142,25/11/2022,31125879,"Supplies, Services & Other Expenses",Food,Greater Manchester Combined Authority ,102.25
TESCO STORES 2142,25/11/2022,31125961,"Supplies, Services & Other Expenses",Food,Greater Manchester Combined Authority ,52.00
WWW.FIRST4MAGNETS.COM,25/11/2022,31128104,Transport Related Expenditure,Repairs and Maintenance - Transport,Greater Manchester Combined Authority ,89.10
WWW.PROTEX.COM,25/11/2022,31127954,Transport Related Expenditure,Repairs and Maintenance - Transport,Greater Manchester Combined Authority ,129.66
B & Q 1250,26/11/2022,31128051,"Supplies, Services & Other Expenses",Subsistence,Greater Manchester Combined Authority ,96.00
WM MORRISONS STORE,26/11/2022,31128003,Indirect Employee Allowances,Subsistence - Training,Greater Manchester Combined Authority ,10.13
Amazon Prime,28/11/2022,31125855,"Supplies, Services & Other Expenses",Subscriptions,Greater Manchester Combined Authority ,-7.99
Amazon Prime MZ6DF0GA5,28/11/2022,31125817,"Supplies, Services & Other Expenses",Periodicals & Magazines,Greater Manchester Combined Authority ,7.99
FACEBK  S54XAJTAK2,30/11/2022,31127993,"Supplies, Services & Other Expenses",Stationery,Greater Manchester Combined Authority ,300.00
FACEBK HDZSMKPAK2,30/11/2022,31128078,"Supplies, Services & Other Expenses",Stationery,Greater Manchester Combined Authority ,393.92
WM MORRISONS STORE,30/11/2022,31128011,"Supplies, Services & Other Expenses",Subsistence,Greater Manchester Combined Authority ,100.65
WM MORRISONS STORE,30/11/2022,31121959,"Supplies, Services & Other Expenses",Subsistence,Greater Manchester Combined Authority ,21.47
WM MORRISONS STORE,30/11/2022,31127940,"Supplies, Services & Other Expenses",Subsistence,Greater Manchester Combined Authority ,15.00
WM MORRISONS STORE,30/11/2022,31128151,"Supplies, Services & Other Expenses",Subsistence,Greater Manchester Combined Authority ,9.96
AMZNMktplace,01/12/2022,31127992,"Supplies, Services & Other Expenses",Computer Hardware,Greater Manchester Combined Authority ,461.93
ASDA SUPERSTORE,01/12/2022,31128138,"Supplies, Services & Other Expenses",Subsistence,Greater Manchester Combined Authority ,20.30
FIREGROUND CAFE LTD,01/12/2022,31128198,"Supplies, Services & Other Expenses",Subsistence,Greater Manchester Combined Authority ,250.00
T J MORRIS LTD,01/12/2022,31125907,"Supplies, Services & Other Expenses",Subsistence,Greater Manchester Combined Authority ,17.96
AEROPORT BARCELONA,02/12/2022,31128203,"Supplies, Services & Other Expenses",Subsistence,Greater Manchester Combined Authority ,21.74
ES MASIES DE VOLTEGA,02/12/2022,31128016,Transport Related Expenditure,Officers Travel & Subsistence,Greater Manchester Combined Authority ,95.13
METROLINK TVM,02/12/2022,31128200,Transport Related Expenditure,Officers Travel & Subsistence,Greater Manchester Combined Authority ,11.20
AMZNMKTPLACE AMAZON.CO,06/12/2022,31127879,"Supplies, Services & Other Expenses",Cleaning Equipment,Greater Manchester Combined Authority ,33.47
AMZNMKTPLACE AMAZON.CO,06/12/2022,31127950,"Supplies, Services & Other Expenses",Cleaning Equipment,Greater Manchester Combined Authority ,8.98
AMZNMKTPLACE AMAZON.CO,06/12/2022,31128174,"Supplies, Services & Other Expenses",Cleaning Equipment,Greater Manchester Combined Authority ,50.51
AMZNMKTPLACE AMAZON.CO,06/12/2022,31127935,"Supplies, Services & Other Expenses",Stationery,Greater Manchester Combined Authority ,63.47
iZ  COLLINA HOLDIN,07/12/2022,31127911,"Supplies, Services & Other Expenses",Subsistence,Greater Manchester Combined Authority ,2.80
EB  NFCC NATIONAL RESI,08/12/2022,31128197,"Supplies, Services & Other Expenses",Events,Greater Manchester Combined Authority ,840.00
EB  THE GREAT NORTHERN,09/12/2022,31128029,Premises Related Expenditure,Responsive Repairs & Maintenance,Greater Manchester Combined Authority ,-222.14
EB  THE GREAT NORTHERN,09/12/2022,31128199,Premises Related Expenditure,Responsive Repairs & Maintenance,Greater Manchester Combined Authority ,222.14
ZOOM.US 888-799-9666,09/12/2022,31128121,"Supplies, Services & Other Expenses",Telephones,Greater Manchester Combined Authority ,62.39
Amazon.co.uk 1B5QZ2P65,12/12/2022,31127958,Premises Related Expenditure,Responsive Repairs & Maintenance,Greater Manchester Combined Authority ,29.53
Amazon.co.uk IO1Z97P05,12/12/2022,31128128,Premises Related Expenditure,Responsive Repairs & Maintenance,Greater Manchester Combined Authority ,60.00
Amazon.co.uk LV1MY3AQ5,12/12/2022,31127882,Premises Related Expenditure,Responsive Repairs & Maintenance,Greater Manchester Combined Authority ,9.58
AMZNMktplace,12/12/2022,31127982,Premises Related Expenditure,Responsive Repairs & Maintenance,Greater Manchester Combined Authority ,5.96
AMZNMktplace,12/12/2022,31128019,Premises Related Expenditure,Responsive Repairs & Maintenance,Greater Manchester Combined Authority ,12.49
AMZNMktplace,12/12/2022,31128059,Premises Related Expenditure,Responsive Repairs & Maintenance,Greater Manchester Combined Authority ,31.98
AMZNMktplace,12/12/2022,31128180,Premises Related Expenditure,Responsive Repairs & Maintenance,Greater Manchester Combined Authority ,14.98
AMZNMktplace,12/12/2022,31127910,Premises Related Expenditure,Responsive Repairs & Maintenance,Greater Manchester Combined Authority ,27.90
AMZNMktplace,12/12/2022,31127974,Premises Related Expenditure,Responsive Repairs & Maintenance,Greater Manchester Combined Authority ,25.98
EG WARRINGTON RD ASDA,12/12/2022,31127884,Transport Related Expenditure,Fuel,Greater Manchester Combined Authority ,26.96
ELECTRIC CENTRE,12/12/2022,31128017,Premises Related Expenditure,Responsive Repairs & Maintenance,Greater Manchester Combined Authority ,4.20
ELECTRIC CENTRE,12/12/2022,31128022,Premises Related Expenditure,Responsive Repairs & Maintenance,Greater Manchester Combined Authority ,28.50
ELECTRIC CENTRE,12/12/2022,31128032,Premises Related Expenditure,Responsive Repairs & Maintenance,Greater Manchester Combined Authority ,99.62
ELECTRIC CENTRE,12/12/2022,31128049,Premises Related Expenditure,Responsive Repairs & Maintenance,Greater Manchester Combined Authority ,257.21
ELECTRIC CENTRE,12/12/2022,31128081,Premises Related Expenditure,Responsive Repairs & Maintenance,Greater Manchester Combined Authority ,44.65
ELECTRIC CENTRE,12/12/2022,31127892,Premises Related Expenditure,Responsive Repairs & Maintenance,Greater Manchester Combined Authority ,276.00
ELECTRIC CENTRE,12/12/2022,31127945,Premises Related Expenditure,Responsive Repairs & Maintenance,Greater Manchester Combined Authority ,45.60
ELECTRIC CENTRE,12/12/2022,31128045,Premises Related Expenditure,Responsive Repairs & Maintenance,Greater Manchester Combined Authority ,194.87
ELECTRIC CENTRE,12/12/2022,31128179,Premises Related Expenditure,Responsive Repairs & Maintenance,Greater Manchester Combined Authority ,105.74
GM POVERTY ACTION,12/12/2022,31128079,"Supplies, Services & Other Expenses",Communications,Greater Manchester Combined Authority ,30.00
GRAX LTD,12/12/2022,31127970,Premises Related Expenditure,Responsive Repairs & Maintenance,Greater Manchester Combined Authority ,7.92
kablemate.org,12/12/2022,31125823,Premises Related Expenditure,Responsive Repairs & Maintenance,Greater Manchester Combined Authority ,47.00
PAYPAL  LOCKSHOPWAR,12/12/2022,31127959,Premises Related Expenditure,Responsive Repairs & Maintenance,Greater Manchester Combined Authority ,528.60
PAYPAL  LOCKSHOPWAR,12/12/2022,31128013,Premises Related Expenditure,Responsive Repairs & Maintenance,Greater Manchester Combined Authority ,354.60
SP PWDIRECT.CO.UK,12/12/2022,31127890,Premises Related Expenditure,Responsive Repairs & Maintenance,Greater Manchester Combined Authority ,55.80
TOOLSTATION UK,12/12/2022,31127878,Premises Related Expenditure,Responsive Repairs & Maintenance,Greater Manchester Combined Authority ,69.90
WWW.CIPR.CO.UK,12/12/2022,31124022,"Supplies, Services & Other Expenses",Subsistence,Greater Manchester Combined Authority ,240.00
WWW.SCREWFIX.COM,12/12/2022,31127902,Premises Related Expenditure,Responsive Repairs & Maintenance,Greater Manchester Combined Authority ,15.19
WWW.SCREWFIX.COM,12/12/2022,31128027,Premises Related Expenditure,Responsive Repairs & Maintenance,Greater Manchester Combined Authority ,4.99
WWW.SCREWFIX.COM,12/12/2022,31128087,Premises Related Expenditure,Responsive Repairs & Maintenance,Greater Manchester Combined Authority ,245.88
WWW.SCREWFIX.COM,12/12/2022,31128134,Premises Related Expenditure,Responsive Repairs & Maintenance,Greater Manchester Combined Authority ,11.10
WWW.SCREWFIX.COM,12/12/2022,31127977,Premises Related Expenditure,Responsive Repairs & Maintenance,Greater Manchester Combined Authority ,67.00
ZTL Deli Station,12/12/2022,31128085,"Supplies, Services & Other Expenses",Subsistence,Greater Manchester Combined Authority ,38.20
ELECTRIC CENTRE,13/12/2022,31128136,Premises Related Expenditure,Responsive Repairs & Maintenance,Greater Manchester Combined Authority ,47.04
G AND E AUTOMATIC EQUI,13/12/2022,31128150,Premises Related Expenditure,Responsive Repairs & Maintenance,Greater Manchester Combined Authority ,108.90
ALDI 79 773,15/12/2022,31124039,"Supplies, Services & Other Expenses",Subsistence,Greater Manchester Combined Authority ,9.76
Bodeans Covent Garden,15/12/2022,31115797,"Supplies, Services & Other Expenses",Subsistence,Greater Manchester Combined Authority ,104.06
NANDOS SOUTHWARK,15/12/2022,31116035,"Supplies, Services & Other Expenses",Subsistence,Greater Manchester Combined Authority ,7.28
GIBBS AND DANDY,20/12/2022,31128031,Premises Related Expenditure,Responsive Repairs & Maintenance,Greater Manchester Combined Authority ,119.68
GIBBS AND DANDY,20/12/2022,31128037,Premises Related Expenditure,Responsive Repairs & Maintenance,Greater Manchester Combined Authority ,102.84
GIBBS AND DANDY,20/12/2022,31128127,Premises Related Expenditure,Responsive Repairs & Maintenance,Greater Manchester Combined Authority ,12.85
MUR-FIX LTD,20/12/2022,31128067,Premises Related Expenditure,Responsive Repairs & Maintenance,Greater Manchester Combined Authority ,96.19
SCREWFIX DIR LTD,20/12/2022,31127891,Premises Related Expenditure,Responsive Repairs & Maintenance,Greater Manchester Combined Authority ,36.29
SCREWFIX DIR LTD,20/12/2022,31127943,Premises Related Expenditure,Responsive Repairs & Maintenance,Greater Manchester Combined Authority ,171.39
SCREWFIX DIR LTD,20/12/2022,31128083,Premises Related Expenditure,Responsive Repairs & Maintenance,Greater Manchester Combined Authority ,33.98
SCREWFIX DIR LTD,20/12/2022,31128159,Premises Related Expenditure,Responsive Repairs & Maintenance,Greater Manchester Combined Authority ,10.99
TOOLSTATION LTD,20/12/2022,31128145,Premises Related Expenditure,Responsive Repairs & Maintenance,Greater Manchester Combined Authority ,35.44
FACEBK A5C4LKKBK2,21/12/2022,31130745,"Supplies, Services & Other Expenses",Stationery,Greater Manchester Combined Authority ,400.00
FACEBK JRPXYJ7BK2,21/12/2022,31130842,"Supplies, Services & Other Expenses",Stationery,Greater Manchester Combined Authority ,400.00
FACEBK KKUTXKXAK2,21/12/2022,31130700,"Supplies, Services & Other Expenses",Stationery,Greater Manchester Combined Authority ,400.00
AMZNMktplace,22/12/2022,31130728,"Supplies, Services & Other Expenses",Subsistence,Greater Manchester Combined Authority ,29.58
AMZNMktplace,22/12/2022,31130705,Premises Related Expenditure,Responsive Repairs & Maintenance,Greater Manchester Combined Authority ,35.97
AMZNMKTPLACE AMAZON.CO,22/12/2022,31130795,Premises Related Expenditure,Responsive Repairs & Maintenance,Greater Manchester Combined Authority ,559.80
APPLE.COM/BILL,22/12/2022,31128154,"Supplies, Services & Other Expenses",Computer Software,Greater Manchester Combined Authority ,0.79
APPLE.COM/BILL,22/12/2022,31130635,"Supplies, Services & Other Expenses",Computer Software,Greater Manchester Combined Authority ,0.79
ARCO LTD,22/12/2022,31128188,Premises Related Expenditure,Responsive Repairs & Maintenance,Greater Manchester Combined Authority ,208.48
BUYBRANDTOOLS LIMITED,22/12/2022,31130787,Premises Related Expenditure,Responsive Repairs & Maintenance,Greater Manchester Combined Authority ,398.99
CO-OP GROUP 108045,22/12/2022,31125984,"Supplies, Services & Other Expenses",Subsistence,Greater Manchester Combined Authority ,36.90
EB  FIREFIT CONFERENCE,22/12/2022,31130839,"Supplies, Services & Other Expenses",Conference,Greater Manchester Combined Authority ,180.00
grandado,22/12/2022,31130722,Premises Related Expenditure,Responsive Repairs & Maintenance,Greater Manchester Combined Authority ,22.49
HGI Silverstone,22/12/2022,31130753,"Supplies, Services & Other Expenses",Subsistence,Greater Manchester Combined Authority ,286.00
MAJESTIC WINE,22/12/2022,31130601,"Supplies, Services & Other Expenses",Subsistence,Greater Manchester Combined Authority ,235.54
SAINSBURY�S S/MKTS,22/12/2022,31128050,"Supplies, Services & Other Expenses",Subsistence,Greater Manchester Combined Authority ,3.70
SCREWFIX DIR LTD,22/12/2022,31130708,Premises Related Expenditure,Responsive Repairs & Maintenance,Greater Manchester Combined Authority ,15.54
SCREWFIX DIR LTD,22/12/2022,31130600,Premises Related Expenditure,Responsive Repairs & Maintenance,Greater Manchester Combined Authority ,10.46
SP DRINKAWARE STORE,22/12/2022,31130598,"Supplies, Services & Other Expenses",Stationery,Greater Manchester Combined Authority ,128.32
SUBWAY 40556 Harpurhey,22/12/2022,31130764,"Supplies, Services & Other Expenses",Subsistence,Greater Manchester Combined Authority ,44.00
SUBWAY 40556 Harpurhey,22/12/2022,31127979,"Supplies, Services & Other Expenses",Subsistence,Greater Manchester Combined Authority ,44.00
TESCO STORES 2992,22/12/2022,31125874,"Supplies, Services & Other Expenses",Subsistence,Greater Manchester Combined Authority ,2.80
TOOLSTATION LTD,22/12/2022,31130683,Premises Related Expenditure,Responsive Repairs & Maintenance,Greater Manchester Combined Authority ,58.69
TOOLSTATION LTD,22/12/2022,31130599,Premises Related Expenditure,Responsive Repairs & Maintenance,Greater Manchester Combined Authority ,84.49
TUCKER-FRENCH.COM,22/12/2022,31130628,Premises Related Expenditure,Responsive Repairs & Maintenance,Greater Manchester Combined Authority ,50.59
WWW.CATERKWIK.CO.UK,22/12/2022,31130694,Premises Related Expenditure,Responsive Repairs & Maintenance,Greater Manchester Combined Authority ,309.53
Amazon.co.uk 1B24Z69K4,23/12/2022,31130732,"Supplies, Services & Other Expenses",Stationery,Greater Manchester Combined Authority ,11.38
AMZNMktplace,23/12/2022,31130819,Transport Related Expenditure,Repairs and Maintenance - Transport,Greater Manchester Combined Authority ,51.14
AMZNMktplace,23/12/2022,31130723,Transport Related Expenditure,Repairs and Maintenance - Transport,Greater Manchester Combined Authority ,46.63
AMZNMKTPLACE AMAZON.CO,23/12/2022,31130772,"Supplies, Services & Other Expenses",Stationery,Greater Manchester Combined Authority ,36.89
B & Q 1229,23/12/2022,31130633,Premises Related Expenditure,Responsive Repairs & Maintenance,Greater Manchester Combined Authority ,5.13
BREWERS FAYRE 41518225,23/12/2022,31130845,"Supplies, Services & Other Expenses",Subsistence,Greater Manchester Combined Authority ,15.69
BREWERS FAYRE 41518225,23/12/2022,31130658,"Supplies, Services & Other Expenses",Subsistence,Greater Manchester Combined Authority ,15.04
BREWERS FAYRE 41518225,23/12/2022,31130611,"Supplies, Services & Other Expenses",Subsistence,Greater Manchester Combined Authority ,17.82
HOME BARGAINS,23/12/2022,31130693,Premises Related Expenditure,Responsive Repairs & Maintenance,Greater Manchester Combined Authority ,30.60
HOMEBASE LTD 117,23/12/2022,31130719,Premises Related Expenditure,Responsive Repairs & Maintenance,Greater Manchester Combined Authority ,25.25
MAP UK,23/12/2022,31130859,Transport Related Expenditure,Repairs and Maintenance - Transport,Greater Manchester Combined Authority ,107.30
MOWER MAGIC,23/12/2022,31130741,Transport Related Expenditure,Repairs and Maintenance - Transport,Greater Manchester Combined Authority ,40.36
NADAL LTD,23/12/2022,31130662,Transport Related Expenditure,Repairs and Maintenance - Transport,Greater Manchester Combined Authority ,10.72
NADAL LTD,23/12/2022,31130653,Transport Related Expenditure,Repairs and Maintenance - Transport,Greater Manchester Combined Authority ,72.99
NCC PARKING CICO,23/12/2022,31130721,Transport Related Expenditure,Officers Travel & Subsistence,Greater Manchester Combined Authority ,3.16
NCP MANCHESTER GREAT N,23/12/2022,31130850,Transport Related Expenditure,Officers Travel & Subsistence,Greater Manchester Combined Authority ,6.90
PIZZA EXPRESS,23/12/2022,31130789,"Supplies, Services & Other Expenses",Subsistence,Greater Manchester Combined Authority ,12.45
Saving Zone,23/12/2022,31130679,Premises Related Expenditure,Responsive Repairs & Maintenance,Greater Manchester Combined Authority ,6.49
Saving Zone,23/12/2022,31130687,Premises Related Expenditure,Responsive Repairs & Maintenance,Greater Manchester Combined Authority ,8.50
Saving Zone,23/12/2022,31130790,Premises Related Expenditure,Responsive Repairs & Maintenance,Greater Manchester Combined Authority ,7.07
T J MORRIS LTD,23/12/2022,31130814,Premises Related Expenditure,Responsive Repairs & Maintenance,Greater Manchester Combined Authority ,22.80
T J MORRIS LTD,23/12/2022,31130812,"Supplies, Services & Other Expenses",Subsistence,Greater Manchester Combined Authority ,1.55
TABLE TABLE41510925,23/12/2022,31130727,"Supplies, Services & Other Expenses",Subsistence,Greater Manchester Combined Authority ,15.49
TESCO STORES 6476,23/12/2022,31130709,"Supplies, Services & Other Expenses",Subsistence,Greater Manchester Combined Authority ,13.04
TESCO-STORES-5995,23/12/2022,31130731,"Supplies, Services & Other Expenses",Subsistence,Greater Manchester Combined Authority ,22.65
TYNE AND WEAR FIRE AND,23/12/2022,31130744,"Supplies, Services & Other Expenses",Subsistence,Greater Manchester Combined Authority ,3.00
TYNE AND WEAR FIRE AND,23/12/2022,31130637,"Supplies, Services & Other Expenses",Subsistence,Greater Manchester Combined Authority ,3.00
TYNE AND WEAR FIRE AND,23/12/2022,31130652,"Supplies, Services & Other Expenses",Subsistence,Greater Manchester Combined Authority ,3.90
WETHERBY COSTA,23/12/2022,31130657,"Supplies, Services & Other Expenses",Subsistence,Greater Manchester Combined Authority ,10.45
WICKES GLOSSOP,23/12/2022,31130671,Premises Related Expenditure,Responsive Repairs & Maintenance,Greater Manchester Combined Authority ,21.60
WICKES STOCKPORT,23/12/2022,31130826,Premises Related Expenditure,Responsive Repairs & Maintenance,Greater Manchester Combined Authority ,22.72
WWW.SCREWFIX.COM,23/12/2022,31130739,Premises Related Expenditure,Responsive Repairs & Maintenance,Greater Manchester Combined Authority ,14.29
WWW.SCREWFIX.COM,23/12/2022,31130602,Premises Related Expenditure,Responsive Repairs & Maintenance,Greater Manchester Combined Authority ,24.99
WWW.SCREWFIX.COM,23/12/2022,31130654,Premises Related Expenditure,Responsive Repairs & Maintenance,Greater Manchester Combined Authority ,61.84
APPLE.COM/BILL,28/12/2022,31125922,"Supplies, Services & Other Expenses",Computer Software,Greater Manchester Combined Authority ,0.79
ASDA SUPERSTORE,28/12/2022,31130801,"Supplies, Services & Other Expenses",Subsistence,Greater Manchester Combined Authority ,7.80
B & Q 1057,28/12/2022,31130760,Premises Related Expenditure,Responsive Repairs & Maintenance,Greater Manchester Combined Authority ,47.00
B & Q 1057,28/12/2022,31130809,Premises Related Expenditure,Responsive Repairs & Maintenance,Greater Manchester Combined Authority ,52.71
BES LTD,28/12/2022,31130846,Premises Related Expenditure,Responsive Repairs & Maintenance,Greater Manchester Combined Authority ,32.21
Dulux Decorator Centre,28/12/2022,31130748,Premises Related Expenditure,Responsive Repairs & Maintenance,Greater Manchester Combined Authority ,32.82
EUROCELL,28/12/2022,31130763,Premises Related Expenditure,Responsive Repairs & Maintenance,Greater Manchester Combined Authority ,314.99
FACEBK 4ZAGKKBBM2,28/12/2022,31127921,"Supplies, Services & Other Expenses",Advertising,Greater Manchester Combined Authority ,4.62
FACEBK 9QB8CKFAM2,28/12/2022,31130678,"Supplies, Services & Other Expenses",Advertising,Greater Manchester Combined Authority ,4.67
FIRE 2000 LTD,28/12/2022,31130844,Premises Related Expenditure,Responsive Repairs & Maintenance,Greater Manchester Combined Authority ,7.80
MUR-FIX LTD,28/12/2022,31130854,Premises Related Expenditure,Responsive Repairs & Maintenance,Greater Manchester Combined Authority ,152.40
Northwest Hardware Lim,28/12/2022,31130818,Premises Related Expenditure,Responsive Repairs & Maintenance,Greater Manchester Combined Authority ,4.27
SCREWFIX DIR LTD,28/12/2022,31130702,Premises Related Expenditure,Responsive Repairs & Maintenance,Greater Manchester Combined Authority ,49.99
SCREWFIX DIR LTD,28/12/2022,31130866,Premises Related Expenditure,Responsive Repairs & Maintenance,Greater Manchester Combined Authority ,41.38
TOOLSTATION LIMITED,28/12/2022,31130778,Premises Related Expenditure,Responsive Repairs & Maintenance,Greater Manchester Combined Authority ,4.82
TOOLSTATION LTD,28/12/2022,31130775,Premises Related Expenditure,Responsive Repairs & Maintenance,Greater Manchester Combined Authority ,51.13
TOOLSTATION LTD,28/12/2022,31130806,Premises Related Expenditure,Responsive Repairs & Maintenance,Greater Manchester Combined Authority ,169.64
TOOLSTATION UK,28/12/2022,31130759,Premises Related Expenditure,Responsive Repairs & Maintenance,Greater Manchester Combined Authority ,78.43
TOOLSTATION UK,28/12/2022,31130803,Premises Related Expenditure,Responsive Repairs & Maintenance,Greater Manchester Combined Authority ,9.98
TOOLSTATION UK,28/12/2022,31130822,Premises Related Expenditure,Responsive Repairs & Maintenance,Greater Manchester Combined Authority ,128.60
WWW.SCREWFIX.COM,28/12/2022,31130595,Premises Related Expenditure,Responsive Repairs & Maintenance,Greater Manchester Combined Authority ,21.84
WWW.SCREWFIX.COM,28/12/2022,31130758,Premises Related Expenditure,Responsive Repairs & Maintenance,Greater Manchester Combined Authority ,6.75
WWW.SCREWFIX.COM,28/12/2022,31130767,Premises Related Expenditure,Responsive Repairs & Maintenance,Greater Manchester Combined Authority ,161.78
WWW.SCREWFIX.COM,28/12/2022,31130780,Premises Related Expenditure,Responsive Repairs & Maintenance,Greater Manchester Combined Authority ,136.33
WWW.SCREWFIX.COM,28/12/2022,31130785,Premises Related Expenditure,Responsive Repairs & Maintenance,Greater Manchester Combined Authority ,12.99
AMZNMktplace,29/12/2022,31130730,"Supplies, Services & Other Expenses",Cleaning Equipment,Greater Manchester Combined Authority ,39.46
AMZNMktplace,29/12/2022,31130784,"Supplies, Services & Other Expenses",Cleaning Equipment,Greater Manchester Combined Authority ,38.63
AMZNMktplace,29/12/2022,31130835,"Supplies, Services & Other Expenses",Cleaning Equipment,Greater Manchester Combined Authority ,19.98
AMZNMKTPLACE AMAZON.CO,29/12/2022,31127880,"Supplies, Services & Other Expenses",Cleaning Equipment,Greater Manchester Combined Authority ,34.95
AMZNMKTPLACE AMAZON.CO,29/12/2022,31130853,"Supplies, Services & Other Expenses",Cleaning Equipment,Greater Manchester Combined Authority ,-34.95
B&M 575 - CROSTONS,29/12/2022,31130805,"Supplies, Services & Other Expenses",Food,Greater Manchester Combined Authority ,18.00
LIDL GB BURY,29/12/2022,31127963,"Supplies, Services & Other Expenses",Food,Greater Manchester Combined Authority ,48.07
LIDL GB BURY,29/12/2022,31128122,"Supplies, Services & Other Expenses",Food,Greater Manchester Combined Authority ,57.71
LIDL GB BURY,29/12/2022,31128205,"Supplies, Services & Other Expenses",Food,Greater Manchester Combined Authority ,58.93
LIDL GB BURY,29/12/2022,31130617,"Supplies, Services & Other Expenses",Food,Greater Manchester Combined Authority ,49.16
LIDL GB BURY,29/12/2022,31130664,"Supplies, Services & Other Expenses",Food,Greater Manchester Combined Authority ,2.10
LIDL GB BURY,29/12/2022,31130677,"Supplies, Services & Other Expenses",Food,Greater Manchester Combined Authority ,15.95
LIDL GB BURY,29/12/2022,31130689,"Supplies, Services & Other Expenses",Food,Greater Manchester Combined Authority ,18.43
MARKS&SPENCER PLC,29/12/2022,31127953,"Supplies, Services & Other Expenses",Food,Greater Manchester Combined Authority ,58.22
TESCO STORES 2142,29/12/2022,31127905,"Supplies, Services & Other Expenses",Food,Greater Manchester Combined Authority ,5.10
TESCO STORES 2142,29/12/2022,31127967,"Supplies, Services & Other Expenses",Food,Greater Manchester Combined Authority ,31.45
TESCO STORES 2142,29/12/2022,31128194,"Supplies, Services & Other Expenses",Food,Greater Manchester Combined Authority ,19.00
TESCO STORES 2142,29/12/2022,31130622,"Supplies, Services & Other Expenses",Food,Greater Manchester Combined Authority ,13.72
TESCO STORES 2142,29/12/2022,31130639,"Supplies, Services & Other Expenses",Food,Greater Manchester Combined Authority ,14.48
TESCO STORES 2142,29/12/2022,31130799,"Supplies, Services & Other Expenses",Food,Greater Manchester Combined Authority ,76.20
WM MORRISONS STORE,29/12/2022,31128025,"Supplies, Services & Other Expenses",Food,Greater Manchester Combined Authority ,16.44
WM MORRISONS STORE,29/12/2022,31128147,"Supplies, Services & Other Expenses",Food,Greater Manchester Combined Authority ,39.55
CROWNE PLAZA LIVERPOOL,31/12/2022,31130651,"Supplies, Services & Other Expenses",Subsistence,Greater Manchester Combined Authority ,12.00
CROWNE PLAZA LIVERPOOL,31/12/2022,31130660,"Supplies, Services & Other Expenses",Subsistence,Greater Manchester Combined Authority ,18.00
